Cogmind - Beta 12 @@@ ROGUE MODE // 2023.06.03 @ 08:47:26 Player: maxwell Result: Establishing Free Derelict Territories! Performance ------------- Evolutions (9) 4500 Regions Visited (35) 7000 Robots Destroyed (363) 1815 Value Destroyed (15092) 15092 Prototype IDs (65) 1300 Alien Tech Used (0) 0 Bonus (35764) 35764 TOTAL SCORE: 65471 Bonus ------- High Alert Combat Kills 779 Follower Combat Kills 5795 Network Hubs Disabled 400 Met Data Miner 300 Destroyed Z-Imprinter 1000 Triggered Deep Caves Wall 500 Exposed GOLEM Chamber 500 Met Warlord at Base 500 MAIN.C Attacked Warlord 500 A7 Reached Mainframe 300 Met R17 at Cetus 500 Met R17 at Research 2000 Destroyed MAIN.C Guards 500 Met MAIN.C 5000 Hacked MAIN.C 300 Destroyed MAIN.C Shell 5000 Destroyed MAIN.C 10000 Met Warlord at Command 2000 Win 3000 Friendly Fire -3110 Cogmind --------- Core Integrity 993/1600 Matter 284/300 Energy 490/490 System Corruption 26% Temperature Warm (132) Movement Immobile (Siege) Location Free Derelict Territories Parts ------- > --- POWER (2) -------- Quantum Reactor Zero-point Reactor > --- PROPULSION (6) --- Heavy Treads Heavy Treads Biometal Medium Treads Biometal Medium Treads > --- UTILITY (13) ----- Advanced Heat Sink Huge Storage Unit Advanced Signal Interpreter Improved Targeting Computer Centrium Medium Armor Plating SHELL Armor Graphene Brace Point Defense System Antimissile System Long-range Tractor Beam > --- WEAPON (4) ------- Tri-rail Accelerator Tri-rail Accelerator > --- INVENTORY (25) --- Experimental Energy Well (600) Advanced Matter Compressor (400) Advanced Matter Compressor (400) Advanced Sensor Array Advanced Signal Interpreter Improved Medium Armor Plating Layered Medium Armor Plating Long-range Tractor Beam GOLEM Unit Enhanced Nova Cannon Tri-rail Accelerator Proton Missile Launcher RU-N14's Throwing Claymores (9) CR-A16's Behemoth Slayer GAL Module Peak State ------------ > --- POWER ------------ Neutrino Core Reinforced Fission Core > --- PROPULSION ------- Centrium Heavy Treads Centrium Heavy Treads > --- UTILITY ---------- Huge Storage Unit Centrium Medium Armor Plating Wardrone Bay > --- WEAPON ----------- Advanced KE Penetrator Advanced KE Penetrator Advanced KE Penetrator > --- INVENTORY -------- Neutrino Core Centrium Heavy Treads Advanced Signal Interpreter Core Analyzer Improved Kinecellerator Improved Kinecellerator Makeshift Transmission Jammer Improved Medium Armor Plating Centrium Medium Armor Plating Centrium Medium Armor Plating Centrium Medium Armor Plating Improved Force Field Hacking Suite Improved Hacking Suite System Mapper Long-range Tractor Beam Improved Trap Extractor GOLEM Unit Advanced Variable Charge Gun Proton Missile Launcher RU-N14's Throwing Claymores CR-A16's Behemoth Slayer GAL Module [Rating: 202] Favorites ----------- Power Reinforced Fission Core Engine Improved Deuterium Engine Power Core Reinforced Fission Core Reactor Cold Fusion Reactor Propulsion Heavy Treads Treads Heavy Treads Leg Enhanced Flexi-carbon Leg Wheel Wheel Hover Unit Gravmag System Flight Unit Makeshift Flight Unit Utility Huge Storage Unit Device Improved Cooling System Storage Huge Storage Unit Processor Improved Signal Interpreter Hackware System Mapper Protection Medium Reactive Plating Weapon Plasma Cannon Energy Gun Vortex Rifle Energy Cannon Plasma Cannon Ballistic Gun Heavy Assault Rifle Ballistic Cannon Tri-rail Accelerator Launcher Long-range Missile Launcher Special Weapon RU-N14's Throwing Claymores Impact Weapon Mace Piercing Weapon CR-A16's Behemoth Slayer Build | -11 -10 -10 -9 -9 -9 -8 -8 -7 -7 -7 -7 -6 -6 -6 -6 -6 -6 -5 -5 -5 -5 -5 -5 -5 -4 -4 -4 -4 -4 -4 -3 -3 -2 -1 -1 ------- Run | Jun Mat Min Mat Min Exi Min Mat Fac Low Low Dat Pro Fac Low Low Zio Dee Pro Fac Was Fac Upp Upp War Pro Fac Ext Cet Arc Hub Res Tes Res Acc Com Slots Evolved 18 | . . . 2 . . . 2 2 . . . . 2 . . . . . 2 . . . . . . 2 . . . . 2 . 2 2 . Power 1 | . . . . . . . . 1 . . . . . . . . . . . . . . . . . . . . . . . . . . . Propulsion 4 | . . . . . . . . . . . . . . . . . . . 2 . . . . . . . . . . . . . 1 1 . Utility 11 | . . . 2 . . . 2 1 . . . . 1 . . . . . . . . . . . . 2 . . . . 2 . 1 . . Weapon 2 | . . . . . . . . . . . . . 1 . . . . . . . . . . . . . . . . . . . . 1 . Parts Attached 495 | . 12 5 30 14 20 2 18 21 6 15 . 23 13 2 16 9 53 15 9 8 10 2 7 14 . 10 30 3 7 2 25 31 14 30 19 Power 38 | . 2 . 4 . 2 . . 2 1 1 . 1 . 1 1 2 2 . 2 2 . . . 2 . . 2 . . . 3 3 . 3 2 Engine 13 | . 2 . 4 . 2 . . 1 1 1 . . . . . 1 1 . . . . . . . . . . . . . . . . . . Core 11 | . . . . . . . . 1 . . . 1 . 1 1 1 . . 1 . . . . 1 . . 2 . . . 2 . . . . Reactor 14 | . . . . . . . . . . . . . . . . . 1 . 1 2 . . . 1 . . . . . . 1 3 . 3 2 Propulsion 64 | . 2 . 7 . 4 . 3 2 . 2 . 4 . . 1 1 2 . 2 2 . . . . . . 15 2 . . 1 2 7 2 3 Treads 40 | . 2 . 4 . 4 . . 1 . . . . . . . . . . . 2 . . . . . . 10 2 . . 1 2 7 2 3 Leg 13 | . . . . . . . . . . . . 4 . . 1 1 2 . 2 . . . . . . . 3 . . . . . . . . Wheel 9 | . . . 3 . . . 3 1 . . . . . . . . . . . . . . . . . . 2 . . . . . . . . Hover 1 | . . . . . . . . . . 1 . . . . . . . . . . . . . . . . . . . . . . . . . Flight 1 | . . . . . . . . . . 1 . . . . . . . . . . . . . . . . . . . . . . . . . Utility 218 | . 3 3 9 7 6 . 5 7 1 5 . 8 9 1 13 3 30 7 2 2 5 2 5 6 . 6 8 . 4 2 16 17 2 14 10 Device 112 | . 2 1 1 4 3 . . 3 1 2 . 6 2 . 7 1 11 5 . 1 2 2 5 4 . 4 5 . 3 1 5 11 . 13 7 Storage 14 | . 1 2 . . 2 . . . . . . . 1 . . . 3 . . . . . . 1 . . 1 . . . 2 . 1 . . Processor 12 | . . . . . . . 1 1 . 1 . . 1 . . . 1 . 1 . 1 . . . . 1 . . . . 2 2 . . . Hackware 7 | . . . . . . . 1 1 . . . . 1 . . . . . . . . . . . . . . . . 1 . 1 . 1 1 Protection 73 | . . . 8 3 1 . 3 2 . 2 . 2 4 1 6 2 15 2 1 1 2 . . 1 . 1 2 . 1 . 7 3 1 . 2 Artifact . | . . . . . . . . . . . . . . . . . . . . . . . . . . . . . . . . . . . . Weapon 175 | . 5 2 10 7 8 2 10 10 4 7 . 10 4 . 1 3 19 8 3 2 5 . 2 6 . 4 5 1 3 . 5 9 5 11 4 Energy Gun 42 | . 4 . 8 1 . . 4 3 . . . 6 2 . . . 6 . . . . . . 2 . . . 1 . . 1 1 . 3 . Energy Cannon 53 | . . 2 . . . 1 . 4 1 . . 1 2 . . 1 8 5 2 1 4 . 1 4 . 3 1 . . . . 6 3 3 . Ballistic Gun 25 | . 1 . . 5 7 . 4 . . 3 . . . . . . . . . . . . . . . . . . 3 . 2 . . . . Ballistic Cannon 12 | . . . . . . . . . . . . . . . . . . . . . . . . . . . . . . . 1 2 1 5 3 Launcher 28 | . . . 2 1 1 1 2 2 1 3 . 3 . . 1 . 3 3 1 1 1 . . . . . 1 . . . . . 1 . . Special Weapon 8 | . . . . . . . . . . . . . . . . 1 2 . . . . . 1 . . 1 2 . . . . . . . 1 Impact Weapon 5 | . . . . . . . . 1 2 1 . . . . . 1 . . . . . . . . . . . . . . . . . . . Slashing Weapon . | . . . . . . . . . . . . . . . . . . . . . . . . . . . . . . . . . . . . Piercing Weapon 2 | . . . . . . . . . . . . . . . . . . . . . . . . . . . 1 . . . 1 . . . . Special Melee Weapon . | . . . . . . . . . . . . . . . . . . . . . . . . . . . . . . . . . . . . Unidentified Prototypes 48 | . . 1 3 . 3 . 2 1 1 . . 3 . . . 1 8 . 1 . 2 . . 2 . 1 1 2 2 . 2 6 2 3 1 Corrupted Parts 8 | . . . . . . . . . . . . 7 . . . . . . . . . . . . . . . . 1 . . . . . . System Corruption 35 | . . . . . . . . . . . . 34 . . . . . . . . . . . . . . . . 1 . . . . . . Parts Lost 87 | . 5 . 6 3 10 . . 6 . 4 . 7 . 2 . . 11 1 . . . . . . . 3 16 . . . 1 3 . 3 6 Power 11 | . 2 . 1 . 2 . . 1 . . . . . 1 . . 2 . . . . . . . . . 1 . . . 1 . . . . Propulsion 16 | . . . 2 . 3 . . 2 . 1 . 2 . . . . . . . . . . . . . . 5 . . . . . . . 1 Utility 44 | . . . 2 3 2 . . 2 . 3 . 3 . 1 . . 8 1 . . . . . . . 2 7 . . . . 3 . 2 5 Weapon 16 | . 3 . 1 . 3 . . 1 . . . 2 . . . . 1 . . . . . . . . 1 3 . . . . . . 1 . Highest Loss Streak 14 | . 2 . 3 2 8 . . 4 . 3 . 4 . 1 . . 6 1 . . . . . . . 2 14 . . . 1 3 . 2 4 To Critical Strikes 6 | . . . . . 6 . . . . . . . . . . . . . . . . . . . . . . . . . . . . . . Average Slot Usage (%) 90 | . 95 100 99 93 87 88 94 87 100 94 92 98 99 95 93 95 92 91 92 90 88 88 88 82 82 83 68 54 52 52 76 83 78 72 73 Engine 4 | . 12 14 11 11 9 11 9 5 7 6 7 7 6 3 . 2 5 . . . . . . . . . . . . . . . . . . Core 4 | . . . . . . . . 7 7 7 7 6 6 8 12 9 6 . 2 . . . . 3 . . 4 10 10 10 6 2 . . . Reactor 2 | . . . . . . . . . . . . . . . . . . 6 5 10 11 11 11 5 5 5 2 . . . 2 6 8 8 8 Treads 7 | . 24 28 11 22 21 22 9 4 7 7 7 . . . . . . . . 8 11 11 11 11 11 10 13 12 10 10 9 11 13 12 13 Leg 4 | . 3 . . . . . . . . . . 14 13 13 6 8 13 12 23 5 . . . . . . . . . . . . . . . Device 16 | . 11 14 11 10 18 22 9 9 21 7 7 16 20 20 20 17 13 19 23 23 21 17 23 18 23 24 12 10 10 7 17 23 21 19 20 Storage 6 | . 14 14 11 11 11 11 9 7 7 7 7 7 6 6 6 6 5 7 5 5 5 5 5 8 5 5 7 5 5 5 4 4 4 4 4 Processor 8 | . . . . . . . 8 9 15 18 15 15 13 6 6 6 6 6 5 5 7 11 11 11 11 14 10 . . . 7 12 8 8 8 Protection 13 | . . . 21 17 4 . 14 8 8 18 23 13 8 15 18 22 20 17 9 11 10 10 5 2 5 6 4 . . . 14 7 8 4 7 Energy Gun 3 | . 18 1 20 8 . . 5 8 . . . 11 4 . . . 2 1 . . . . . 3 11 6 . 2 1 . 1 . 1 . . Energy Cannon 8 | . . 26 1 . . . . 2 7 2 . 1 15 20 14 13 8 16 8 16 17 17 16 13 5 7 6 2 . . . 3 2 1 . Ballistic Gun 1 | . 9 . . 13 21 11 8 . . 1 . . . . . . . . . . . . . . . . . . 11 15 7 . . . . Launcher 1 | . . . . . . 11 3 2 3 6 7 1 . . 5 1 . 1 4 . . . . . . . 1 5 1 . . . . . . Naked Turns . | . . . . . . . . . . . . . . . . . . . . . . . . . . . . . . . . . . . . Heaviest Build 200 | 10 50 92 107 116 114 100 106 140 141 146 146 146 169 189 197 199 199 199 179 173 175 157 156 160 160 175 196 196 190 188 188 182 188 194 200 Greatest Support 215 | 20 40 40 44 44 54 42 42 22 10 22 22 56 56 56 56 48 48 60 108 140 140 140 140 140 140 140 140 160 160 160 160 160 190 215 215 Greatest Overweight (x) 58 | . 1 2 10 2 2 2 4 13 14 6 6 47 3 3 58 7 4 3 1 2 1 1 1 1 1 1 10 2 1 1 1 1 1 1 . Average Overweight (x) 3 | . . 1 2 2 1 2 3 7 13 6 6 2 2 3 6 5 2 2 1 1 1 1 1 . 1 1 2 1 1 1 1 . . . . Largest Inventory Capacity 25 | . 20 25 25 25 25 25 25 25 25 25 25 25 25 25 25 25 25 25 25 25 25 25 25 25 25 25 25 25 25 25 25 25 25 25 25 Average Capacity 24 | . 13 24 25 25 22 25 25 25 25 25 25 25 25 25 25 25 23 25 25 25 25 25 25 25 25 25 25 25 25 25 25 25 25 25 25 Most Carried 25 | . 19 25 25 25 25 25 25 25 25 25 23 25 25 25 25 25 25 25 25 25 25 25 25 25 25 25 25 25 25 25 25 25 25 25 25 Average Carried 22 | . 6 22 23 24 19 25 24 22 24 23 23 22 24 24 23 24 18 23 24 23 24 25 24 24 24 23 20 21 24 24 19 24 24 24 21 Final Capacity 25 | 8 20 25 25 25 25 25 25 25 25 25 25 25 25 25 25 25 25 25 25 25 25 25 25 25 25 25 25 25 25 25 25 25 25 25 25 Final Carried 25 | 6 19 23 25 25 25 25 23 25 25 23 23 24 25 25 24 25 25 24 23 23 25 25 25 25 25 22 17 25 25 24 24 25 25 25 17 Class Distribution -------------------- 37% | Scavenger-Mutant 17% | Mutant 14% | Scavenger-Tank 11% | Trapper-Mutant 6% | Derelict-Mutant 3% | Tank Dominant Class ---------------- Mutant | -10/Materials Mutant | -10/Mines Mutant | -9/Materials Mutant | -9/Mines Scavenger-Mutant | -9/Exiles Mutant | -8/Mines Scavenger-Mutant | -8/Materials Scavenger-Mutant | -7/Factory Scavenger-Mutant | -7/Lower Caves Scavenger-Mutant | -7/Lower Caves Scavenger-Mutant | -7/Data Miner Scavenger-Mutant | -6/Proximity Caves Scavenger-Skirmisher | -6/Factory Scavenger-Tank | -6/Lower Caves Derelict-Mutant | -6/Lower Caves Trapper-Mutant | -6/Zion Mutant | -6/Deep Caves Tank | -5/Proximity Caves Mutant | -5/Factory Scavenger-Tank | -5/Waste Scavenger-Tank | -5/Factory Scavenger-Tank | -5/Upper Caves Scavenger-Tank | -5/Upper Caves Scavenger-Mutant | -5/Warlord Scavenger-Mutant | -4/Proximity Caves Scavenger-Mutant | -4/Factory Scavenger-Mutant | -4/Extension Commander-Mutant | -4/Cetus Scavenger-Gunner | -4/Archives Scavenger-Gunner | -4/Hub_04(d) Scavenger-Mutant | -3/Research Scavenger-Mutant | -3/Testing Scavenger-Gunner | -2/Research Hacker-Gunner | -1/Access Hacker-Gunner | -1/Command Resources | -11 -10 -10 -9 -9 -9 -8 -8 -7 -7 -7 -7 -6 -6 -6 -6 -6 -6 -5 -5 -5 -5 -5 -5 -5 -4 -4 -4 -4 -4 -4 -3 -3 -2 -1 -1 ----------- Run | Jun Mat Min Mat Min Exi Min Mat Fac Low Low Dat Pro Fac Low Low Zio Dee Pro Fac Was Fac Upp Upp War Pro Fac Ext Cet Arc Hub Res Tes Res Acc Com Matter Collected 13250 | 200 105 176 1083 619 1143 . 710 658 162 363 . 499 181 77 400 50 873 375 156 20 158 50 145 140 . 95 273 40 182 17 1295 687 350 1056 912 Remotely 3056 | . . . . . . . . . . . . . . . . . . . . . . . . . . . . . . . 1022 465 . 889 680 Salvage Created 17986 | . 727 120 1135 297 622 19 1026 1053 95 995 . 1551 480 52 192 . 1962 940 684 136 260 . 148 . 19 837 674 . 191 . 910 934 63 979 885 Parts 724 | . 38 2 78 17 68 6 74 43 . 34 . 49 17 3 6 . 12 38 23 5 8 . 6 . 1 41 18 . 11 . 35 45 3 37 6 Haulers Intercepted 12 | . 1 . 4 . . . 1 1 . . . 1 . . . . . . . . 1 . . . . 1 . . . . 2 . . . . Recyclers Shooed 7 | . . 1 1 . . . . . . . . . 1 . . . . . . . 2 . . . . . . . . . . . . 1 1 Parts Field Recycled . | . . . . . . . . . . . . . . . . . . . . . . . . . . . . . . . . . . . . Retrieved Matter . | . . . . . . . . . . . . . . . . . . . . . . . . . . . . . . . . . . . . Parts Self-Destructed 94 | . . . . . . . . . 16 6 . 24 . . 4 2 . 9 . . . 13 1 . 19 . . . . . . . . . . Prevented 76 | . . . . . . . . . . 21 . 43 . . . . . 6 . . . 3 . . 3 . . . . . . . . . . Kills | -11 -10 -10 -9 -9 -9 -8 -8 -7 -7 -7 -7 -6 -6 -6 -6 -6 -6 -5 -5 -5 -5 -5 -5 -5 -4 -4 -4 -4 -4 -4 -3 -3 -2 -1 -1 ------- Run | Jun Mat Min Mat Min Exi Min Mat Fac Low Low Dat Pro Fac Low Low Zio Dee Pro Fac Was Fac Upp Upp War Pro Fac Ext Cet Arc Hub Res Tes Res Acc Com Combat Hostiles Destroyed 342 | . 15 . 26 15 6 3 19 15 2 16 . 22 5 1 5 . 75 22 8 . . . 4 . 1 19 8 . . . 9 19 1 20 6 Guns 90 | . 15 . 21 13 2 . 13 4 . . . 4 . . . . 1 . . . . . . . 1 8 . . . . 8 . . . . Cannons 89 | . . . 2 . . . . 4 . . . . 5 1 1 . 14 8 1 . . . . . . 4 3 . . . . 19 1 20 6 AOE 136 | . . . 2 2 4 3 6 7 . 15 . 9 . . 4 . 56 12 3 . . . 4 . . 6 3 . . . . . . . . Classes Destroyed 31 | . 6 . 3 1 3 . 2 3 . 1 . 1 . 1 2 . 3 . . . . . . . . 2 1 . . . . 1 . . 1 Worker 6 | . . . 1 . . . 2 . . . . . . . . . . . . . . . . . . . . . . . . 1 . 2 . Builder 17 | . . . . . . . 6 4 . . . . 1 . . . . . 1 . . . . . . . . . . . 2 2 . 1 . Tunneler 1 | . . . . . . . . 1 . . . . . . . . . . . . . . . . . . . . . . . . . . . Hauler 12 | . 1 . 4 . . . 1 1 . . . 1 . . . . . . . . 1 . . . . 1 . . . . 2 . . . . Recycler 10 | . 2 . 1 . . . 1 1 . . . . 1 . . . . . . . 1 . . . . . 2 . . . . . . . 1 Minesweeper 3 | . . . . . . . . . . . . . . . 2 . . . . . . . 1 . . . . . . . . . . . . Operator 6 | . 1 . 1 . . . . . . . . . . . . . . . . . 1 . . . . . . . 3 . . . . . . Drone 2 | . . . . . . . . . . . . 2 . . . . . . . . . . . . . . . . . . . . . . . Turret 1 | . . . . . 1 . . . . . . . . . . . . . . . . . . . . . . . . . . . . . . Watcher 19 | . 1 . 3 . . . 4 . . . . . 2 . . . . . 1 . . . . . . 3 . . . . . 1 . 2 2 Swarmer 61 | . 6 . 11 8 . 3 7 . . 4 . 3 . . 3 . . 10 . . . . . . 1 5 . . . . . . . . . Grunt 92 | . 9 . 4 5 . . 8 8 2 8 . 13 . . . . . 3 7 . . . 4 . . 2 2 . . . 6 6 . 5 . Brawler 4 | . . . 1 . . . . 1 . . . . . . . . . . . . . . . . . . . . . . . 2 . . . Duelist 8 | . . . . . . . . 1 . 3 . 2 . . . . . 1 . . . . . . . 1 . . . . . . . . . Protector 1 | . . . . . . . . . . . . . . . . . . . . . . . . . . . . . . . . 1 . . . Sentry 28 | . . . 10 . . . 3 2 . . . 1 1 . 1 . . . 1 . . . . . . 2 3 . . . . . 1 2 1 Demolisher 2 | . . . . 2 . . . . . . . . . . . . . . . . . . . . . . . . . . . . . . . Specialist 2 | . . . . . . . . . . . . . . . . . . . . . . . . . . 2 . . . . . . . . . Hunter 23 | . . . . . . . 1 2 . . . 1 3 . . . . 1 . . . . . . . 2 2 . . . 2 4 . 3 2 Programmer 22 | . . . . . . . . 1 . . . . 1 . . . . . . . . . . . . 4 . . . . . 6 . 10 . Heavy 1 | . . . . . . . . . . . . . . . . . . . . . . . . . . 1 . . . . . . . . . Behemoth 2 | . . . . . . . . . . . . . . . . . . . . . . . . . . . 1 . . . 1 . . . . Zionite 8 | . . . . . 8 . . . . . . . . . . . . . . . . . . . . . . . . . . . . . . Z-Light 6 | . . . . . . . . . . . . . . . . . 6 . . . . . . . . . . . . . . . . . . Decomposer 1 | . . . . . . . . . . . . . . . 1 . . . . . . . . . . . . . . . . . . . . Packrat 4 | . . . . . . . . . . 2 . 2 . . . . . . . . . . . . . . . . . . . . . . . Samaritan 1 | . . . . . . . . . . . . . . . 1 . . . . . . . . . . . . . . . . . . . . Master Thief 2 | . . . . . . . . . . 1 . . . . 1 . . . . . . . . . . . . . . . . . . . . Assembler 2 | . . . . . . . . . . . . . . . . . 2 . . . . . . . . . . . . . . . . . . Assembled 55 | . . . . . 5 . . . . . . . . . . . 50 . . . . . . . . . . . . . . . . . . Golem 18 | . . . . . . . . . . . . . . . . . 18 . . . . . . . . . . . . . . . . . . Thug 8 | . . . . . . . . . . . . . . . . . . 5 . . . . . . . . . . 1 . . . . . 2 Butcher 1 | . . . . . . . . . . . . . . . . . . 1 . . . . . . . . . . . . . . . . . Martyr 2 | . . . . . . . . . . . . . . . . . . . . 2 . . . . . . . . . . . . . . . Mutant 2 | . . . . . . . . . . . . . . 1 . . . 1 . . . . . . . . . . . . . . . . . Knight 1 | . . . . . . . . . . . . . . . . . . . . . . . . . . . . . . . . . . . 1 Best Kill Streak 45 | . 6 . 5 4 5 3 8 6 1 4 . 8 3 1 3 . 45 6 5 . 2 . 4 . 1 8 4 . 1 . 8 9 1 5 2 Combat Bots Only 43 | . 5 . 3 4 5 3 4 4 1 4 . 8 1 1 3 . 43 6 4 . . . 4 . 1 6 2 . . . 3 6 1 5 2 Max Kills in Single Turn 15 | . 1 1 1 1 2 3 3 3 1 3 . 2 2 1 1 . 15 3 2 1 1 . 2 . 1 5 2 . 1 . 2 2 1 1 1 Gunslinging 1 | . . . . . . . 1 . . . . . . . . . . . . . . . . . . . . . . . 1 . . . . Exploded 14 | . . . 1 1 2 3 2 3 . 3 . 2 . . 1 . 14 3 1 . . . 2 . . 3 2 . . . . . . . . Melee . | . . . . . . . . . . . . . . . . . . . . . . . . . . . . . . . . . . . . Uniques/NPCs Destroyed 7 | . . 1 . . 4 . . . . . . . . . . . 1 . . . . . . . . . . . . . . . . . 1 YI-UF0 (-10/Mines) 8R-AWN (-9/Exiles) EX-HEX (-9/Exiles) EX-DEC (-9/Exiles) EX-BIN (-9/Exiles) Z-Imprinter (-6/Deep Caves) MAIN.C Shell (-1/Command) Combat | -11 -10 -10 -9 -9 -9 -8 -8 -7 -7 -7 -7 -6 -6 -6 -6 -6 -6 -5 -5 -5 -5 -5 -5 -5 -4 -4 -4 -4 -4 -4 -3 -3 -2 -1 -1 -------- Run | Jun Mat Min Mat Min Exi Min Mat Fac Low Low Dat Pro Fac Low Low Zio Dee Pro Fac Was Fac Upp Upp War Pro Fac Ext Cet Arc Hub Res Tes Res Acc Com Damage Taken 23763 | . 714 55 985 985 1296 64 643 917 122 475 . 1258 153 123 423 . 2838 638 451 . 154 164 52 . 162 849 1678 23 28 580 1114 1236 20 2321 3242 Core 2328 | . 126 7 90 98 138 . 80 161 . 136 . 92 . 10 28 . 316 15 59 . . . 19 . . 20 221 . . . 21 64 20 528 79 Absorbed by Shields 2664 | . . . . . . . . . . . . . . . . . . . . . 44 50 16 . 117 366 133 22 . . 263 501 7 823 322 Reduced by Siege Mode 127 | . . . . . . . . . . . . . . . . . . . . . . . . . . . . . . . . . . . 127 Redirected to Shielding 252 | . . . 32 . . . . . . . . . . . . . 220 . . . . . . . . . . . . . . . . . . Regen/Repaired (Parts) 1669 | . . . . . . . . . . . . . . . . . . . . 71 30 67 19 . 67 31 . . . . . . . 631 753 Core Remaining (%) 70 | 100 . 46 . . . 18 85 . . . . 44 . . . . . 56 . . . . . . 92 . . . . 79 . 93 98 . 62 Volleys Fired 1073 | . 65 9 77 32 127 1 56 46 . 38 . 56 23 9 27 . 119 31 18 5 5 1 4 16 4 60 19 1 9 . 21 80 6 65 43 Largest 3 | . 2 2 2 2 2 1 2 2 . 2 . 2 3 3 3 . 3 3 3 3 3 3 3 1 2 3 3 1 3 . 3 2 2 3 2 Hottest 420 | . 130 136 136 130 60 36 115 119 . 60 . 115 250 250 250 . 184 250 260 260 270 270 270 90 130 240 240 240 105 . 105 240 173 420 120 Shots Fired 1829 | . 111 18 152 62 199 1 97 76 . 49 . 81 56 25 40 . 183 68 27 15 15 4 8 16 6 90 35 1 28 . 62 93 12 115 84 Gun 893 | . 111 . 127 58 195 . 89 45 . 20 . 45 6 . . . 44 . . . . . . . 4 42 . 1 28 . 61 8 . 9 . Cannon 758 | . . 18 22 . . . . 22 . . . 1 50 25 24 . 107 55 16 15 15 4 5 16 2 44 31 . . . 1 85 12 106 82 Launcher 147 | . . . 3 4 4 1 8 9 . 29 . 35 . . 16 . 14 13 11 . . . . . . . . . . . . . . . . Special 31 | . . . . . . . . . . . . . . . . . 18 . . . . . 3 . . 4 4 . . . . . . . 2 Kinetic 659 | . 33 . . 23 195 . 46 . . 20 . . . . . . . . . . . . . . . . . . 28 . 62 67 6 97 82 Thermal 770 | . 62 18 149 35 . . 41 45 . . . 1 53 25 24 . 108 55 16 15 15 4 5 16 2 19 11 1 . . . 26 6 18 . Explosive 84 | . . . 3 . 4 1 8 . . . . 5 . . 16 . 32 4 . . . . 3 . . 4 4 . . . . . . . . Electromagnetic 268 | . 16 . . 4 . . 2 31 . 29 . 75 3 . . . 43 9 11 . . . . . . 25 20 . . . . . . . . Entropic 46 | . . . . . . . . . . . . . . . . . . . . . . . . . 4 42 . . . . . . . . . Robot Hit Streak 33 | . 12 4 13 9 11 3 10 16 . 14 . 15 14 16 20 . 33 14 12 10 22 25 2 . 1 10 22 . 27 . 8 9 8 15 32 Robot Miss Streak 14 | . 4 2 7 14 5 . 6 4 . 2 . 3 3 2 2 . 3 4 1 1 . 1 2 . 3 4 1 . 3 . 3 4 2 5 3 Penetration Max 2 | . . . . . 1 . 2 . . . . . . . . . . . . . . . . . . . . . 1 . 1 . . . . Secondary Targets 16 | . 2 . 4 1 . . 2 . . . . 1 . . . . . . . . . . . . . 2 . . . . 4 . . . . Max Gunslinging Chain 1 | . 1 . 1 1 . . 1 . . . . 1 . . . . . . . . . . . . . 1 . . . . 1 . . . . Shots Hit Robots 1260 | . 73 11 109 51 129 1 63 56 7 32 . 48 33 19 25 . 127 39 18 12 12 3 4 . 2 54 33 . 18 . 42 63 9 90 77 Core Hits 988 | . 33 4 98 43 48 3 64 45 . 33 . 46 14 3 17 . 212 34 13 9 7 1 10 . 1 34 15 . 10 . 24 54 5 58 50 Critical Kills 18 | . . . . . 4 . 8 . . 1 . . . . 1 . . 1 . . . . . . . . . . 1 . 2 . . . . Critical Parts Destroyed 26 | . . . . . 7 . 6 . 1 3 . . . . . . . . . . . . . . . 2 . . . . 6 1 . . . Critical Strikes 81 | . 2 . 3 . 13 . 15 5 1 4 . 1 . . 1 . 3 1 . . . . . . . 4 7 . 2 . 8 3 2 3 3 Burn 9 | . . . 3 . . . 1 5 . . . . . . . . . . . . . . . . . . . . . . . . . . . Meltdown 2 | . . . . . . . . . . . . . . . 1 . . 1 . . . . . . . . . . . . . . . . . Destroy 42 | . . . . . 13 . 14 . . 4 . . . . . . . . . . . . . . . . . . 2 . 8 1 . . . Blast 10 | . . . . . . . . . . . . . . . . . . . . . . . . . . . . . . . . 2 2 3 3 Corrupt 8 | . 2 . . . . . . . . . . 1 . . . . 1 . . . . . . . . 2 2 . . . . . . . . Smash 1 | . . . . . . . . . 1 . . . . . . . . . . . . . . . . . . . . . . . . . . Sever 6 | . . . . . . . . . . . . . . . . . 2 . . . . . . . . . 4 . . . . . . . . Impale 1 | . . . . . . . . . . . . . . . . . . . . . . . . . . . 1 . . . . . . . . Detonate 2 | . . . . . . . . . . . . . . . . . . . . . . . . . . 2 . . . . . . . . . Melee Attacks 43 | . . . . . . . . 5 13 . . . . . . 18 . . . . . . . . . . 6 . . . 1 . . . . Impact 36 | . . . . . . . . 5 13 . . . . . . 18 . . . . . . . . . . . . . . . . . . . Slashing . | . . . . . . . . . . . . . . . . . . . . . . . . . . . . . . . . . . . . Piercing 7 | . . . . . . . . . . . . . . . . . . . . . . . . . . . 6 . . . 1 . . . . Sneak Attacks . | . . . . . . . . . . . . . . . . . . . . . . . . . . . . . . . . . . . . Combat Hostiles . | . . . . . . . . . . . . . . . . . . . . . . . . . . . . . . . . . . . . Follow-up Attacks . | . . . . . . . . . . . . . . . . . . . . . . . . . . . . . . . . . . . . Damage Inflicted 58284 | . 832 254 1870 623 1963 204 2069 1974 249 1426 . 3000 1143 563 1714 . 12517 2048 1190 415 556 141 1237 . 86 3486 1998 . 610 21 1545 3795 530 5073 5152 Guns 11207 | . 831 . 1352 499 1796 . 1172 440 . 236 . 497 62 . . . 658 . . . . . . . 48 1362 . . 610 . 1438 64 . 142 . Cannons 23726 | . . 229 318 . . . . 524 . . . . 1000 563 456 . 2148 946 366 415 510 141 113 . 38 803 828 . . . 96 3731 530 4819 5152 Explosions 21623 | . . . 122 106 152 204 849 1010 . 1190 . 2503 66 . 1258 . 9030 1102 824 . . . 1051 . . 1156 909 . . . . . . 91 . Melee 348 | . . . . . . . . . 249 . . . . . . . . . . . . . . . . . 99 . . . . . . . . Ramming 321 | . 1 25 78 18 15 . 48 . . . . . 15 . . . . . . . 46 . . . . . 22 . . 21 11 . . 21 . Kinetic 19177 | . 225 . . 176 1796 . 737 . . 236 . . . . . . . . . . . . . . . . . . 610 . 1534 3640 410 4661 5152 Thermal 12845 | . 430 229 1670 323 . . 450 696 . 45 . 173 1110 563 456 . 2502 946 413 415 510 141 307 . 38 549 304 . . . . 155 120 300 . Explosive 15208 | . . . 122 . 152 204 806 248 . . . 269 . . 1258 . 8803 602 . . . . 857 . . 978 909 . . . . . . . . Electromagnetic 7916 | . 176 . . 106 . . 28 1030 . 1145 . 2558 18 . . . 531 500 777 . . . . . . 432 524 . . . . . . 91 . Impact 249 | . . . . . . . . . 249 . . . . . . . . . . . . . . . . . . . . . . . . . . Slashing 1059 | . . . . . . . . . . . . . . . . . 681 . . . . . 73 . . 165 140 . . . . . . . . Piercing 99 | . . . . . . . . . . . . . . . . . . . . . . . . . . . 99 . . . . . . . . Entropic 1410 | . . . . . . . . . . . . . . . . . . . . . . . . . 48 1362 . . . . . . . . . Highest Corruption 35 | . . . 5 5 . . . . . 1 . 35 . . . . 8 5 . . 2 2 2 2 . . . . 1 3 . 7 5 12 26 Average Corruption 6 | . . . 4 4 . . . . . 1 . 17 . . . . 5 5 . . 1 2 2 2 . . . . 1 1 . 4 5 5 16 Corruption Purged 11 | . . . . 5 . . . . . 2 . . . . . . 3 . . . . . . . . . . . 1 . . . . . . Corruption Blocked 41 | . . . . . . . . . . . . . . . . . . . . . . . . . . . . . . . . . . . 41 Effects 512 | . . . 18 28 . . . . . 5 . 111 . . . . 129 69 . . 5 29 32 2 . . . . . . . 19 6 19 40 Message Errors 119 | . . . 2 9 . . . . . 2 . 27 . . . . 30 15 . . . 4 10 . . . . . . . . 4 3 4 9 Matter Fused 102 | . . . 6 6 . . . . . 2 . 19 . . . . 28 13 . . 1 7 5 . . . . . . . . 4 . 7 4 Heat Flow Errors 69 | . . . 5 1 . . . . . . . 16 . . . . 17 9 . . . 4 4 1 . . . . . . . 4 . 2 6 Energy Discharges 66 | . . . 1 6 . . . . . . . 13 . . . . 15 12 . . 1 4 1 1 . . . . . . . 3 1 3 5 Parts Rejected 5 | . . . . 1 . . . . . . . . . . . . 2 . . . . . . . . . . . . . . . . . 2 Parts Fused 2 | . . . . . . . . . . . . 1 . . . . 1 . . . . . . . . . . . . . . . . . . Data Loss (minor) 74 | . . . 1 2 . . . . . . . 15 . . . . 19 11 . . 1 8 6 . . . . . . . . 2 1 2 6 Data Loss (major) 28 | . . . 2 . . . . . . . . 8 . . . . 6 4 . . 1 1 1 . . . . . . . . . 1 1 3 Misfires 29 | . . . 1 2 . . . . . 1 . 8 . . . . 8 3 . . . 1 2 . . . . . . . . 1 . . 2 Alerts 14 | . . . . 1 . . . . . . . 3 . . . . 3 2 . . 1 . 3 . . . . . . . . 1 . . . Misdirections 1 | . . . . . . . . . . . . . . . . . . . . . . . . . . . . . . . . . . . 1 Weapon Failures 3 | . . . . . . . . . . . . 1 . . . . . . . . . . . . . . . . . . . . . . 2 Overload Shots 14 | . . . . . . . . . . . . . . . . . . . . . . . . . . . . 1 . . . 4 . 9 . Overflow Damage 1372 | . . . 8 . 9 . 83 2 55 13 . 29 112 29 115 . 413 45 22 . 49 . 29 . . 95 11 . . . 22 57 . 85 89 Projectiles 712 | . . . 3 . . . . 2 . . . . 112 29 47 . 136 22 . . 49 . . . . 59 . . . . 22 57 . 85 89 Explosions 579 | . . . 5 . 9 . 57 . . 13 . 29 . . 68 . 277 23 22 . . . 29 . . 36 11 . . . . . . . . Melee 81 | . . . . . . . 26 . 55 . . . . . . . . . . . . . . . . . . . . . . . . . . Knockbacks 91 | . . . . . . . 1 . 3 . . . . . . . . . . . 1 . . . . . . . . . 2 18 1 47 18 Impact 5 | . . . . . . . 1 . 3 . . . . . . . . . . . 1 . . . . . . . . . . . . . . Kinetic 76 | . . . . . . . . . . . . . . . . . . . . . . . . . . . . . . . 1 18 1 39 17 Secondary 10 | . . . . . . . . . . . . . . . . . . . . . . . . . . . . . . . 1 . . 8 1 Self-Inflicted Damage 1356 | . . . 71 . 46 28 63 75 . 230 . 158 . . 369 . 111 114 41 . . . 50 . . . . . . . . . . . . Shots 51 | . . . 2 . 1 1 2 2 . 12 . 12 . . 6 . 3 5 4 . . . 1 . . . . . . . . . . . . Rammed 35 | . 1 4 8 4 5 . 1 . . . . . . . . . . . . . 7 . . . . . 2 . . 1 1 . . 1 . Targets Rammed 37 | . 1 4 8 4 5 . 1 . . . . . 2 . . . . . . . 7 . . . . . 2 . . 1 1 . . 1 . Kicked 2 | . . . . . . . . . . . . . 2 . . . . . . . . . . . . . . . . . . . . . . Crushed . | . . . . . . . . . . . . . . . . . . . . . . . . . . . . . . . . . . . . Highest Temperature 548 | . 184 175 274 258 136 . 199 199 . 196 . 330 414 143 144 . 323 206 75 234 228 251 187 95 90 200 179 194 85 14 317 317 432 548 264 Average Temperature 89 | . 54 97 90 108 56 . 112 88 . 56 . 96 118 72 61 . 113 53 46 88 98 91 76 30 48 100 47 99 35 14 147 109 101 107 113 Received Heat Transfer 3606 | . 282 . 282 213 100 . 279 255 72 90 . 285 30 40 . . 377 162 126 . 27 41 . . . 84 326 . . 67 158 106 6 105 93 Effects 19 | . . . 1 2 . . . . . . . . 2 . . . 2 . . . . . . . . 2 . . . . 2 1 1 6 . Shutdowns 4 | . . . . . . . . . . . . . 2 . . . . . . . . . . . . . . . . . . . 1 1 . Energy Bleed 3 | . . . 1 . . . . . . . . . . . . . . . . . . . . . . . . . . . 1 1 . . . Interference 9 | . . . . 2 . . . . . . . . . . . . 2 . . . . . . . . 2 . . . . . . . 3 . Short Circuit 1 | . . . . . . . . . . . . . . . . . . . . . . . . . . . . . . . 1 . . . . Damage (core) 2 | . . . . . . . . . . . . . . . . . . . . . . . . . . . . . . . . . . 2 . Siege Activations 3 | . . . . . . . . . . . . . . . . . . . . . . . . . . . . . . . . . . 1 2 Total Turns 58 | . . . . . . . . . . . . . . . . . . . . . . . . . . . . . . . . . . 10 48 Longest Duration 34 | . . . . . . . . . . . . . . . . . . . . . . . . . . . . . . . . . . 10 34 Robots Corrupted 23 | . . . . . . . . . . 1 . 10 . . . . 4 2 4 . . . . . . 1 1 . . . . . . . . Combat Hostiles 22 | . . . . . . . . . . 1 . 9 . . . . 4 2 4 . . . . . . 1 1 . . . . . . . . Parts Fried 39 | . . . . . . . . 3 . 13 . 10 . . 1 . . 2 7 . . . . . . 2 1 . . . . . . . . Impact Corruptions 6 | . . . . . . . 2 . 4 . . . . . . . . . . . . . . . . . . . . . . . . . . Robots Melted 3 | . . . 1 . . . . . . . . . . . 1 . . 1 . . . . . . . . . . . . . . . . . Combat Hostiles 2 | . . . 1 . . . . . . . . . . . . . . 1 . . . . . . . . . . . . . . . . . Parts Melted 29 | . 2 . 8 . . . 2 5 . 1 . . 2 . 1 . 3 2 . . . . 1 . . 1 1 . . . . . . . . Heat Transferred 15227 | . 900 407 3039 400 . . 949 1934 . 50 . 250 1150 600 750 . 1564 1200 348 299 361 102 304 . . 150 . . . . . 148 111 211 . Parts Sabotaged . | . . . . . . . . . . . . . . . . . . . . . . . . . . . . . . . . . . . . Parts Stolen 11 | . . . . . . . . . . 4 . . . 3 4 . . . . . . . . . . . . . . . . . . . . Parts Stripped . | . . . . . . . . . . . . . . . . . . . . . . . . . . . . . . . . . . . . Power Chain Reactions 19 | . . . . . . . 1 2 . 3 . 3 1 . . . 3 1 3 . . . 1 . . 1 . . . . . . . . . Missiles Intercepted 11 | . . . . . . . . . . . . . . . . . . . . . . . . . . . . . . . . . . . 11 Alert | -11 -10 -10 -9 -9 -9 -8 -8 -7 -7 -7 -7 -6 -6 -6 -6 -6 -6 -5 -5 -5 -5 -5 -5 -5 -4 -4 -4 -4 -4 -4 -3 -3 -2 -1 -1 ------- Run | Jun Mat Min Mat Min Exi Min Mat Fac Low Low Dat Pro Fac Low Low Zio Dee Pro Fac Was Fac Upp Upp War Pro Fac Ext Cet Arc Hub Res Tes Res Acc Com Peak Influence 1352 | . 346 96 530 228 . 78 499 627 . . . . 614 . . . . . 254 81 1352 . . . . 568 363 810 407 817 627 589 314 389 456 Initial 537 | . . 4 . 168 . . 29 189 . . . . 537 . . . . . 69 81 1 . . . . . 231 154 244 142 428 352 224 . 248 Average 287 | . 173 11 319 73 . 76 281 433 . . . . 400 . . . . . 206 47 738 . . . . 223 254 531 379 533 499 437 175 146 328 Maximum Alert Level 4 | . 1 . 2 1 . . 2 2 . . . . 2 . . . . . 1 . 4 . . . . 2 1 3 2 3 2 2 1 1 2 Low Security (%) 38 | . 56 100 26 84 . 100 23 3 . . . . . . . . . . 29 100 10 . . . . 47 27 9 . 15 . . 54 67 6 Level 1 33 | . 43 . 27 15 . . 55 25 . . . . 63 . . . . . 70 . 12 . . . . 32 72 32 59 4 13 41 45 32 66 Level 2 23 | . . . 45 . . . 21 70 . . . . 36 . . . . . . . 19 . . . . 20 . 27 40 67 86 58 . . 27 Level 3 3 | . . . . . . . . . . . . . . . . . . . . . 41 . . . . . . 30 . 11 . . . . . Level 4 1 | . . . . . . . . . . . . . . . . . . . . . 16 . . . . . . . . . . . . . . Level 5 . | . . . . . . . . . . . . . . . . . . . . . . . . . . . . . . . . . . . . High Security . | . . . . . . . . . . . . . . . . . . . . . . . . . . . . . . . . . . . . Max Security . | . . . . . . . . . . . . . . . . . . . . . . . . . . . . . . . . . . . . Squads Dispatched 54 | . 3 . 2 1 . . 1 6 . . . 1 3 . . . . . 1 . 9 . . . . 4 . . . 5 8 4 . 3 3 Investigation 10 | . . . . 1 . . . 1 . . . . . . . . . . . . 4 . . . . . . . . 1 2 . . . 1 Extermination 11 | . . . . . . . . 1 . . . . 2 . . . . . . . 1 . . . . 2 . . . . . 2 . 2 1 Reinforcement 25 | . 3 . 2 . . . 1 2 . . . . 1 . . . . . 1 . 3 . . . . 2 . . . 2 6 1 . . 1 Assault 5 | . . . . . . . . 1 . . . 1 . . . . . . . . 1 . . . . . . . . 1 . 1 . . . Garrison 3 | . . . . . . . . 1 . . . . . . . . . . . . . . . . . . . . . 1 . . . 1 . Intercept . | . . . . . . . . . . . . . . . . . . . . . . . . . . . . . . . . . . . . Searches Triggered 1 | . . . . . . . . . . . . . 1 . . . . . . . . . . . . . . . . . . . . . . Data Miner Redirects 5 | . . . . . . . . . . . . . . . . . . . . . 2 . . . . . . . . 1 . 1 . . 1 Construction Impeded 3 | . . . . . . . 1 1 . . . . 1 . . . . . . . . . . . . . . . . . . . . . . Haulers Reinforced 6 | . . . . . . . . 1 . . . . . . . . . . . . 2 . . . . . . . . . 3 . . . . Active Scanning Responses . | . . . . . . . . . . . . . . . . . . . . . . . . . . . . . . . . . . . . Cargo Convoy Interrupts . | . . . . . . . . . . . . . . . . . . . . . . . . . . . . . . . . . . . . Stealth | -11 -10 -10 -9 -9 -9 -8 -8 -7 -7 -7 -7 -6 -6 -6 -6 -6 -6 -5 -5 -5 -5 -5 -5 -5 -4 -4 -4 -4 -4 -4 -3 -3 -2 -1 -1 --------- Run | Jun Mat Min Mat Min Exi Min Mat Fac Low Low Dat Pro Fac Low Low Zio Dee Pro Fac Was Fac Upp Upp War Pro Fac Ext Cet Arc Hub Res Tes Res Acc Com Distress Signals 31 | . 3 . 1 . . . 3 . . . . . 3 . . . . . . . 4 . . . . 1 . 2 . . 9 1 2 . 2 Communications Jammed 205 | . . . . . . . . . . . . . . . 3 . . . 15 . 3 . . . . 11 . . . 15 86 54 1 16 1 Distress Signals 198 | . . . . . . . . . . . . . . . 3 . . . 15 . 3 . . . . 6 . . . 15 86 52 1 16 1 Times Spotted 606 | . 29 3 46 15 15 3 26 19 7 16 . 35 11 4 7 . 62 22 11 . 27 8 4 23 9 29 24 15 7 23 26 27 7 26 20 Peak Tracking Total 30 | . 9 3 5 4 9 3 3 4 6 4 . 10 3 2 4 . 30 5 5 . 4 4 5 11 5 9 4 5 3 10 8 6 2 5 4 Tactical Retreats 27 | . 2 1 2 . 2 . 2 2 1 1 . 3 . . . . 4 . 1 . . . . . . 3 1 . . . 1 . 1 . . Traps | -11 -10 -10 -9 -9 -9 -8 -8 -7 -7 -7 -7 -6 -6 -6 -6 -6 -6 -5 -5 -5 -5 -5 -5 -5 -4 -4 -4 -4 -4 -4 -3 -3 -2 -1 -1 ------- Run | Jun Mat Min Mat Min Exi Min Mat Fac Low Low Dat Pro Fac Low Low Zio Dee Pro Fac Was Fac Upp Upp War Pro Fac Ext Cet Arc Hub Res Tes Res Acc Com Traps Triggered 14 | . . . 5 . . . . 1 . . . . . . . . . . 1 . 1 . . . . . 3 . . . 1 1 . 1 . Indirectly . | . . . . . . . . . . . . . . . . . . . . . . . . . . . . . . . . . . . . Trap Hack Attempts . | . . . . . . . . . . . . . . . . . . . . . . . . . . . . . . . . . . . . Triggered . | . . . . . . . . . . . . . . . . . . . . . . . . . . . . . . . . . . . . Disarmed . | . . . . . . . . . . . . . . . . . . . . . . . . . . . . . . . . . . . . Reprogrammed . | . . . . . . . . . . . . . . . . . . . . . . . . . . . . . . . . . . . . Reused 6 | . . . . . . . . . . . . . . . . . 6 . . . . . . . . . . . . . . . . . . Traps Extracted 2 | . . . . . . . . . . . . . . . . . 1 . . . . . 1 . . . . . . . . . . . . Installed 14 | . . 3 . . . . . . . . . . . . . . 11 . . . . . . . . . . . . . . . . . . Triggered 13 | . . . . . . . . . . . . . . . 1 . . . . . . . . 12 . . . . . . . . . . . Most Traps Carried 10 | . . 2 . . . . . . . . . . . . 10 10 10 . . . . . 1 1 1 1 1 1 1 1 1 . . . . Exploded 3 | . . . . . 3 . . . . . . . . . . . . . . . . . . . . . . . . . . . . . . Machines | -11 -10 -10 -9 -9 -9 -8 -8 -7 -7 -7 -7 -6 -6 -6 -6 -6 -6 -5 -5 -5 -5 -5 -5 -5 -4 -4 -4 -4 -4 -4 -3 -3 -2 -1 -1 ---------- Run | Jun Mat Min Mat Min Exi Min Mat Fac Low Low Dat Pro Fac Low Low Zio Dee Pro Fac Was Fac Upp Upp War Pro Fac Ext Cet Arc Hub Res Tes Res Acc Com Machines Disabled 65 | . . . 3 . 18 . 2 3 . . . 1 . 1 1 2 3 . 2 . 6 . . . . 2 4 1 . 2 2 7 . 3 2 Max in Single Turn 2 | . . . 2 . 2 . 1 1 . . . 1 . 1 1 1 1 . 2 . . . . . . 1 2 1 . . 1 2 . 1 1 Garrison Access 4 | . . . . . . . . 1 . . . . . . . . . . . . 1 . . . . . . . . . . . 1 1 . Network Hub 2 | . . . . . . . . . . . . . . . . . . . . . . . . . . . . . . 2 . . . . . Machines Repaired 1 | . . . . . . . . . . . . . . . . . . . . . . . . . . . . . . 1 . . . . . Machines Sabotaged . | . . . . . . . . . . . . . . . . . . . . . . . . . . . . . . . . . . . . Overloaded Fab Kills . | . . . . . . . . . . . . . . . . . . . . . . . . . . . . . . . . . . . . Hacking | -11 -10 -10 -9 -9 -9 -8 -8 -7 -7 -7 -7 -6 -6 -6 -6 -6 -6 -5 -5 -5 -5 -5 -5 -5 -4 -4 -4 -4 -4 -4 -3 -3 -2 -1 -1 --------- Run | Jun Mat Min Mat Min Exi Min Mat Fac Low Low Dat Pro Fac Low Low Zio Dee Pro Fac Was Fac Upp Upp War Pro Fac Ext Cet Arc Hub Res Tes Res Acc Com Machines Accessed 54 | . 3 . . 2 1 . 1 3 4 . 3 . 2 1 1 . . 1 . . 11 1 2 1 . . 3 . . 2 . 5 . 4 3 Terminals 33 | . 3 . . . . . 1 1 1 . . . 2 . . . . 1 . . 8 1 . . . . 3 . . 2 . 4 . 3 3 Fabricators 3 | . . . . . . . . 1 . . . . . . . . . . . . 1 . . . . . . . . . . 1 . . . Repair Stations . | . . . . . . . . . . . . . . . . . . . . . . . . . . . . . . . . . . . . Recycling Units . | . . . . . . . . . . . . . . . . . . . . . . . . . . . . . . . . . . . . Scanalyzers 1 | . . . . . . . . . . . . . . . . . . . . . 1 . . . . . . . . . . . . . . Garrison Access 3 | . . . . . . . . 1 . . . . . . . . . . . . 1 . . . . . . . . . . . . 1 . Total Hacks 170 | . 12 . . 2 1 . 4 7 13 . 22 . 5 1 1 . . 1 . . 25 1 6 4 . . 12 . . 3 . 17 . 22 11 Successful 96 | . 6 . . 2 1 . . 1 13 . 22 . 2 1 1 . . 1 . . 7 1 6 4 . . 5 . . 1 . 11 . 6 5 Failed 74 | . 6 . . . . . 4 6 . . . . 3 . . . . . . . 18 . . . . . 7 . . 2 . 6 . 16 6 Catastrophic 14 | . . . . . . . . 1 . . . . 1 . . . . . . . 5 . . . . . 2 . . 2 . . . 3 . Database Lockouts . | . . . . . . . . . . . . . . . . . . . . . . . . . . . . . . . . . . . . Manual 57 | . 8 . . . . . 4 4 . . . . 2 . . . . . . . 13 . . 1 . . 1 . . 3 . 11 . 7 3 Terminals 106 | . 12 . . . . . 4 2 5 . . . 5 . . . . 1 . . 18 1 . . . . 12 . . 3 . 15 . 17 11 Fabricators 8 | . . . . . . . . 3 . . . . . . . . . . . . 3 . . . . . . . . . . 2 . . . Repair Stations . | . . . . . . . . . . . . . . . . . . . . . . . . . . . . . . . . . . . . Recycling Units . | . . . . . . . . . . . . . . . . . . . . . . . . . . . . . . . . . . . . Scanalyzers 2 | . . . . . . . . . . . . . . . . . . . . . 2 . . . . . . . . . . . . . . Garrison Access 9 | . . . . . . . . 2 . . . . . . . . . . . . 2 . . . . . . . . . . . . 5 . Terminal Hacks 75 | . 5 . . 2 1 . . 1 13 . 22 . 1 1 1 . . 1 . . 1 1 6 4 . . 4 . . . . 5 . 3 3 Record 30 | . . . . . 1 . . . 11 . 6 . . . 1 . . 1 . . . 1 5 4 . . . . . . . . . . . Part Schematic 9 | . . . . . . . . . . . 9 . . . . . . . . . . . . . . . . . . . . . . . . Robot Schematic 4 | . . . . . . . . . . . 4 . . . . . . . . . . . . . . . . . . . . . . . . Robot Analysis 3 | . 3 . . . . . . . . . . . . . . . . . . . . . . . . . . . . . . . . . . Prototype ID Bank 3 | . . . . . . . . . . . 3 . . . . . . . . . . . . . . . . . . . . . . . . Open Door 8 | . . . . 2 . . . . 2 . . . . 1 . . . . . . . . 1 . . . . . . . . 1 . . 1 Level Access Points 1 | . . . . . . . . . . . . . . . . . . . . . . . . . . . . . . . . 1 . . . Branch Access Points 5 | . . . . . . . . 1 . . . . 1 . . . . . . . 1 . . . . . . . . . . 1 . 1 . Terminal Index 4 | . 1 . . . . . . . . . . . . . . . . . . . . . . . . . . . . . . 1 . 1 1 Alert Level 3 | . . . . . . . . . . . . . . . . . . . . . . . . . . . 2 . . . . . . 1 . Unreport Threat 1 | . . . . . . . . . . . . . . . . . . . . . . . . . . . . . . . . 1 . . . Locate Traps 3 | . 1 . . . . . . . . . . . . . . . . . . . . . . . . . 2 . . . . . . . . Disengage Seal 1 | . . . . . . . . . . . . . . . . . . . . . . . . . . . . . . . . . . . 1 Fabricator Hacks 3 | . . . . . . . . . . . . . . . . . . . . . 2 . . . . . . . . . . 1 . . . Network Status 1 | . . . . . . . . . . . . . . . . . . . . . . . . . . . . . . . . 1 . . . Load Schematic 1 | . . . . . . . . . . . . . . . . . . . . . 1 . . . . . . . . . . . . . . Build 1 | . . . . . . . . . . . . . . . . . . . . . 1 . . . . . . . . . . . . . . Repair Station Hacks . | . . . . . . . . . . . . . . . . . . . . . . . . . . . . . . . . . . . . Recycling Unit Hacks . | . . . . . . . . . . . . . . . . . . . . . . . . . . . . . . . . . . . . Scanalyzer 2 | . . . . . . . . . . . . . . . . . . . . . 2 . . . . . . . . . . . . . . Insert Component 1 | . . . . . . . . . . . . . . . . . . . . . 1 . . . . . . . . . . . . . . Analyze 1 | . . . . . . . . . . . . . . . . . . . . . 1 . . . . . . . . . . . . . . Garrison Access Hacks 1 | . . . . . . . . . . . . . . . . . . . . . . . . . . . . . . . . . . 1 . Seal Access 1 | . . . . . . . . . . . . . . . . . . . . . . . . . . . . . . . . . . 1 . Unauthorized Hacks 15 | . 1 . . . . . . . . . . . 1 . . . . . . . 2 . . . . . 1 . . 1 . 5 . 2 2 Terminals 13 | . 1 . . . . . . . . . . . 1 . . . . . . . 1 . . . . . 1 . . 1 . 4 . 2 2 Assimilate 2 | . . . . . . . . . . . . . . . . . . . . . . . . . . . . . . . . 1 . . 1 Botnet 7 | . . . . . . . . . . . . . 1 . . . . . . . 1 . . . . . 1 . . . . 2 . 1 1 Operators 3 | . 1 . . . . . . . . . . . . . . . . . . . . . . . . . . . . . . 1 . 1 . Sabotage 1 | . . . . . . . . . . . . . . . . . . . . . . . . . . . . . . 1 . . . . . Fabricators 1 | . . . . . . . . . . . . . . . . . . . . . . . . . . . . . . . . 1 . . . Liberate 1 | . . . . . . . . . . . . . . . . . . . . . . . . . . . . . . . . 1 . . . Repair Stations . | . . . . . . . . . . . . . . . . . . . . . . . . . . . . . . . . . . . . Recycling Units . | . . . . . . . . . . . . . . . . . . . . . . . . . . . . . . . . . . . . Scanalyzers . | . . . . . . . . . . . . . . . . . . . . . . . . . . . . . . . . . . . . Garrison Access 1 | . . . . . . . . . . . . . . . . . . . . . 1 . . . . . . . . . . . . . . Jam 1 | . . . . . . . . . . . . . . . . . . . . . 1 . . . . . . . . . . . . . . Data Cores Recovered 1 | . 1 . . . . . . . . . . . . . . . . . . . . . . . . . . . . . . . . . . Used 1 | . 1 . . . . . . . . . . . . . . . . . . . . . . . . . . . . . . . . . . Hacking Detections 34 | . 3 . . . . . 1 3 1 . . . 2 . . . . . . . 10 . . . . . 3 . . 1 . 4 . 3 3 Full Trace Events 5 | . . . . . . . . 1 . . . . . . . . . . . . 3 . . . . . . . . . . . . . 1 Feedback Events 2 | . . . . . . . . . . . . . . . . . . . . . 1 . . . . . . . . . . . . . 1 Corruption 1 | . . . . . . . . . . . . . . . . . . . . . 1 . . . . . . . . . . . . . . Hackware Fried 1 | . . . . . . . . . . . . . . . . . . . . . . . . . . . . . . . . . . . 1 Feedback Blocked . | . . . . . . . . . . . . . . . . . . . . . . . . . . . . . . . . . . . . Robot Schematics Acquired 7 | . . . . . . . . . . . 4 . . . . 3 . . . . . . . . . . . . . . . . . . . Robots Built . | . . . . . . . . . . . . . . . . . . . . . . . . . . . . . . . . . . . . Authchips . | . . . . . . . . . . . . . . . . . . . . . . . . . . . . . . . . . . . . Time . | . . . . . . . . . . . . . . . . . . . . . . . . . . . . . . . . . . . . Total Robot Build Rating . | . . . . . . . . . . . . . . . . . . . . . . . . . . . . . . . . . . . . Part Schematics Acquired 23 | . . . . . . . . . . . 9 . . . . 13 . . . . 1 . . . . . . . . . . . . . . Parts Built . | . . . . . . . . . . . . . . . . . . . . . . . . . . . . . . . . . . . . Authchips . | . . . . . . . . . . . . . . . . . . . . . . . . . . . . . . . . . . . . Time 69 | . . . . . . . . . . . . . . . . . . . . . 69 . . . . . . . . . . . . . . Total Part Build Rating . | . . . . . . . . . . . . . . . . . . . . . . . . . . . . . . . . . . . . Parts Repaired . | . . . . . . . . . . . . . . . . . . . . . . . . . . . . . . . . . . . . Time . | . . . . . . . . . . . . . . . . . . . . . . . . . . . . . . . . . . . . Parts Recycled . | . . . . . . . . . . . . . . . . . . . . . . . . . . . . . . . . . . . . Recycled Matter . | . . . . . . . . . . . . . . . . . . . . . . . . . . . . . . . . . . . . Retrieved Matter . | . . . . . . . . . . . . . . . . . . . . . . . . . . . . . . . . . . . . Retrieved Components . | . . . . . . . . . . . . . . . . . . . . . . . . . . . . . . . . . . . . Parts Scanalyzed 1 | . . . . . . . . . . . . . . . . . . . . . 1 . . . . . . . . . . . . . . Part Schematics Acquired 1 | . . . . . . . . . . . . . . . . . . . . . 1 . . . . . . . . . . . . . . Parts Damaged . | . . . . . . . . . . . . . . . . . . . . . . . . . . . . . . . . . . . . Bothacking | -11 -10 -10 -9 -9 -9 -8 -8 -7 -7 -7 -7 -6 -6 -6 -6 -6 -6 -5 -5 -5 -5 -5 -5 -5 -4 -4 -4 -4 -4 -4 -3 -3 -2 -1 -1 ------------ Run | Jun Mat Min Mat Min Exi Min Mat Fac Low Low Dat Pro Fac Low Low Zio Dee Pro Fac Was Fac Upp Upp War Pro Fac Ext Cet Arc Hub Res Tes Res Acc Com Used RIF Installer . | . . . . . . . . . . . . . . . . . . . . . . . . . . . . . . . . . . . . Robots Hacked 1 | . . . . . . . . . . . . . . . . . . . . . . . . . . . . . . . . . . . 1 Non-combat . | . . . . . . . . . . . . . . . . . . . . . . . . . . . . . . . . . . . . Combat 1 | . . . . . . . . . . . . . . . . . . . . . . . . . . . . . . . . . . . 1 Robot Hacks Applied 1 | . . . . . . . . . . . . . . . . . . . . . . . . . . . . . . . . . . . 1 parse_system 1 | . . . . . . . . . . . . . . . . . . . . . . . . . . . . . . . . . . . 1 Manual 1 | . . . . . . . . . . . . . . . . . . . . . . . . . . . . . . . . . . . 1 Relay Couplers Released 13 | . . . . . . . . 2 . . . . . . . . . . . . 3 . . . . . . . . . . . 2 6 . Machine Destruction 6 | . . . . . . . . 2 . . . . . . . . . . . . . . . . . . . . . . . . 2 2 . Programmers 7 | . . . . . . . . . . . . . . . . . . . . . 3 . . . . . . . . . . . . 4 . Fabnet Peak Effective % . | . . . . . . . . . . . . . . . . . . . . . . . . . . . . . . . . . . . . Robots Rewired 22 | . . . . . . . . . . . . 2 . . . . . . . . . . . 5 . . 14 . . . . 1 . . . Allies Hacked 2 | . . . . . . . . . . . . . . . . . . . . . 2 . . . . . . . . . . . . . . Hacks Repelled . | . . . . . . . . . . . . . . . . . . . . . . . . . . . . . . . . . . . . Allies | -11 -10 -10 -9 -9 -9 -8 -8 -7 -7 -7 -7 -6 -6 -6 -6 -6 -6 -5 -5 -5 -5 -5 -5 -5 -4 -4 -4 -4 -4 -4 -3 -3 -2 -1 -1 -------- Run | Jun Mat Min Mat Min Exi Min Mat Fac Low Low Dat Pro Fac Low Low Zio Dee Pro Fac Was Fac Upp Upp War Pro Fac Ext Cet Arc Hub Res Tes Res Acc Com Total Allies 63 | . . 3 . . . . . . 3 . . 3 . . . . . . . 20 . . . 5 . . 26 . . . . 2 . . 1 Largest Group 20 | . . 3 3 . . . . . 3 . . 3 2 . . . . . . 20 18 9 7 12 10 6 12 11 8 5 2 1 . . 1 Highest-Rated Group 749 | . . 40 40 . . . . . 75 . . 148 52 . . . . . . 749 649 317 234 505 436 276 613 613 478 225 95 113 . . 45 Highest-Rated Ally 159 | . . 16 16 . . . . . 25 . . 96 32 . . . . . . 50 46 46 46 68 68 65 159 159 159 51 51 113 . . 45 Total Orders 29 | . . . . . . . . . . . . 2 . . . . . . . . . . . 9 . . 6 4 2 6 . . . . . STAY 9 | . . . . . . . . . . . . 1 . . . . . . . . . . . 7 . . 1 . . . . . . . . FOLLOW 5 | . . . . . . . . . . . . 1 . . . . . . . . . . . 2 . . 1 . . 1 . . . . . RETURN 15 | . . . . . . . . . . . . . . . . . . . . . . . . . . . 4 4 2 5 . . . . . Ally Attacks 815 | . . 13 56 . . . . . 10 . . 36 4 . . . . . . . 239 43 6 41 47 22 117 87 27 59 4 4 . . . Total Damage 26829 | . . 103 558 . . . . . 238 . . 888 100 . . . . . . . 5864 1346 143 1844 1290 1247 4173 4190 1404 3176 89 176 . . . Kills 163 | . . 3 5 . . . . . 4 . . 8 2 . . . . . . . 40 9 1 12 10 2 25 18 4 19 . 1 . . . Allies Corrupted 5 | . . . . . . . . . . . . . . . . . . . . . 1 . . . . 2 . . . . 1 1 . . . Allies Melted 1 | . . . . . . . . . 1 . . . . . . . . . . . . . . . . . . . . . . . . . . Intel | -11 -10 -10 -9 -9 -9 -8 -8 -7 -7 -7 -7 -6 -6 -6 -6 -6 -6 -5 -5 -5 -5 -5 -5 -5 -4 -4 -4 -4 -4 -4 -3 -3 -2 -1 -1 ------- Run | Jun Mat Min Mat Min Exi Min Mat Fac Low Low Dat Pro Fac Low Low Zio Dee Pro Fac Was Fac Upp Upp War Pro Fac Ext Cet Arc Hub Res Tes Res Acc Com Robot Analysis Total 3 | . 3 . . . . . . . . . . . . . . . . . . . . . . . . . . . . . . . . . . Derelict Logs Recovered 20 | . . 1 . 1 . . . . 2 2 . 3 . 1 2 . . 2 . . . 2 3 . 1 . . . . . . . . . . Drone Launches 15 | . . . . . . . . . . . . . . . . . . . . . . . . . . . 4 4 2 4 1 . . . . Drone Recoveries 14 | . . . . . . . . . . . . . . . . . . . . . . . . . . . 4 4 2 4 . . . . . Exploration | -11 -10 -10 -9 -9 -9 -8 -8 -7 -7 -7 -7 -6 -6 -6 -6 -6 -6 -5 -5 -5 -5 -5 -5 -5 -4 -4 -4 -4 -4 -4 -3 -3 -2 -1 -1 ------------- Run | Jun Mat Min Mat Min Exi Min Mat Fac Low Low Dat Pro Fac Low Low Zio Dee Pro Fac Was Fac Upp Upp War Pro Fac Ext Cet Arc Hub Res Tes Res Acc Com Turns Passed 73659 | . 1215 2296 2650 2230 2802 224 967 1490 3161 6037 488 3002 1089 3082 7495 5055 6822 2692 568 688 1907 2015 2156 1805 2625 889 2162 402 244 260 771 1550 878 1075 867 Spaces Moved 22371 | 1 529 712 1075 657 878 71 367 468 1109 940 79 865 341 923 1400 1040 1747 876 260 279 743 822 890 684 1082 294 740 146 77 104 271 541 517 430 413 Core 22 | . . . . . . . . . . . . 4 . . 18 . . . . . . . . . . . . . . . . . . . . Treads 12248 | . 474 712 420 657 878 71 129 95 . 940 79 8 . . . . . . . 191 743 822 890 684 1082 294 580 146 77 104 271 541 517 430 413 Legs 7603 | 1 55 . . . . . . . . . . 853 341 923 1382 1040 1747 876 260 88 . . . . . . 37 . . . . . . . . Wheels 2498 | . . . 655 . . . 238 373 1109 . . . . . . . . . . . . . . . . . 123 . . . . . . . . Hover . | . . . . . . . . . . . . . . . . . . . . . . . . . . . . . . . . . . . . Flight . | . . . . . . . . . . . . . . . . . . . . . . . . . . . . . . . . . . . . Fastest Speed 120 | 120 120 240 135 305 152 312 145 160 275 625 625 260 260 330 260 330 190 210 195 195 240 240 240 160 240 240 175 240 240 240 240 150 148 161 152 Average Speed 302 | 120 186 312 209 305 264 312 203 271 276 625 625 320 281 330 527 479 357 232 195 225 240 240 240 239 240 240 248 253 240 240 240 234 159 172 161 Slowest Speed 2950 | 120 240 320 560 305 312 312 312 625 290 625 625 2400 330 330 2950 610 455 240 195 240 240 240 240 240 240 240 470 320 240 240 240 240 247 255 166 Overloaded Moves . | . . . . . . . . . . . . . . . . . . . . . . . . . . . . . . . . . . . . Propulsion Burnouts . | . . . . . . . . . . . . . . . . . . . . . . . . . . . . . . . . . . . . Robots Hopped . | . . . . . . . . . . . . . . . . . . . . . . . . . . . . . . . . . . . . Cave-ins Triggered 1 | . . . . . . . . . . . . . . . . . 1 . . . . . . . . . . . . . . . . . . Exploration Rate (%) 61 | 2 90 98 84 94 78 30 42 12 94 96 68 96 14 97 97 82 78 94 8 94 22 93 95 79 95 10 85 74 71 21 9 75 19 12 15 Regions Visited 35 Branch Regions 23 Pre-discovered Areas 7 | . . . . 1 1 . . . . 1 1 2 . 1 . . . . . . . . . . . . . . . . . . . . . Known Exits Taken 22 | . . . . . . 1 . 1 1 1 1 1 1 1 1 1 . 1 . . 1 1 1 1 1 1 . . . 1 1 1 1 1 . Unknown Exits Taken 11 | 1 1 1 1 1 1 . 1 . . . . . . . . . 1 . . . . . . . . . 1 1 1 . . . . . . Scrap Searched 45 | . . 1 . 3 . . . . 8 4 . 5 . 4 5 3 . 3 . . . 4 3 . 2 . . . . . . . . . . Spaces Dug 92 | . . . 7 . . . . 2 4 . . 13 4 . 9 2 5 1 3 . . . 11 4 . 6 . . . . . 11 . 10 . Terrain Destroyed 969 | . . . 31 . 47 12 101 24 4 9 . 97 13 2 203 2 62 41 21 2 2 . 43 5 4 65 51 . 12 . 28 39 5 34 10 Melee 8 | . . . . . . . . 2 4 . . . . . . 2 . . . . . . . . . . . . . . . . . . . Projectile 232 | . . . . . 16 . 10 . . 2 . 1 9 2 . . 13 8 4 2 2 . 2 5 4 22 2 . 12 . 28 39 5 34 10 AOE 724 | . . . 31 . 28 12 89 22 . 7 . 96 4 . 203 . 49 33 17 . . . 41 . . 43 49 . . . . . . . . Terrain Rammed . | . . . . . . . . . . . . . . . . . . . . . . . . . . . . . . . . . . . . Walls Destroyed . | . . . . . . . . . . . . . . . . . . . . . . . . . . . . . . . . . . . . Machines Disabled . | . . . . . . . . . . . . . . . . . . . . . . . . . . . . . . . . . . . . Actions | -11 -10 -10 -9 -9 -9 -8 -8 -7 -7 -7 -7 -6 -6 -6 -6 -6 -6 -5 -5 -5 -5 -5 -5 -5 -4 -4 -4 -4 -4 -4 -3 -3 -2 -1 -1 --------- Run | Jun Mat Min Mat Min Exi Min Mat Fac Low Low Dat Pro Fac Low Low Zio Dee Pro Fac Was Fac Upp Upp War Pro Fac Ext Cet Arc Hub Res Tes Res Acc Com Total 26568 | . 655 760 1317 820 1173 73 492 597 1179 1050 78 1013 424 940 1467 1084 2162 1482 297 328 849 863 902 842 1105 392 1006 182 115 113 343 731 559 645 530 Wait 1701 | . 25 18 70 96 96 . 32 42 38 52 . 23 24 3 18 . 146 536 3 17 60 37 . 55 18 25 57 12 19 7 . 24 7 98 43 Move 22338 | . 528 711 1074 656 877 70 366 467 1108 939 78 864 340 922 1399 1039 1746 875 260 278 743 821 889 683 1081 293 739 145 76 103 270 540 516 429 413 Hop . | . . . . . . . . . . . . . . . . . . . . . . . . . . . . . . . . . . . . Pick Up 294 | . 18 7 28 10 27 . 6 12 6 3 . 11 9 4 2 8 41 9 3 5 12 . 1 11 1 2 9 12 1 . 11 11 3 6 5 Fast Attach 164 | . 6 . 14 2 3 . 7 5 2 3 . 9 6 . 5 4 12 1 2 7 2 2 . 2 . 2 18 2 2 . 9 16 10 9 2 Attach 166 | . 5 . 12 6 11 . 5 7 . 3 . 6 5 2 1 4 19 8 5 . 2 . . 8 . 6 8 1 . . 12 6 2 11 11 Detach 44 | . . . . 1 1 . 1 . . 1 . . 2 . . . 4 5 3 2 . . . 6 . 1 3 . . . 4 2 . 6 2 Swap 166 | . 1 5 5 6 6 2 6 9 4 9 . 8 2 . 10 1 22 6 2 1 6 . 7 4 . 2 4 . 5 2 4 9 2 10 6 Drop 305 | . 6 3 29 7 20 . 12 4 8 2 . 8 11 . 5 10 42 11 1 12 12 2 1 19 1 1 8 9 3 . 10 20 13 10 5 Fire 1073 | . 65 9 77 32 127 1 56 46 . 38 . 56 23 9 27 . 119 31 18 5 5 1 4 16 4 60 19 1 9 . 21 80 6 65 43 Melee 43 | . . . . . . . . 5 13 . . . . . . 18 . . . . . . . . . . 6 . . . 1 . . . . Ram 2 | . . . 1 . . . 1 . . . . . . . . . . . . . . . . . . . . . . . . . . . . Kick 2 | . . . . . . . . . . . . . 2 . . . . . . . . . . . . . . . . . . . . . . Crush 32 | . 1 4 7 4 5 . . . . . . . . . . . . . . . 6 . . . . . 2 . . 1 1 . . 1 . Escape Stasis 11 | . . . . . . . . . . . . . . . . . . . . . . . . . . . 11 . . . . . . . . Rewire 213 | . . . . . . . . . . . . 28 . . . . . . . 1 1 . . 38 . . 122 . . . . 23 . . . Trap 14 | . . 3 . . . . . . . . . . . . . . 11 . . . . . . . . . . . . . . . . . . Miscellaneous . | . . . . . . . . . . . . . . . . . . . . . . . . . . . . . . . . . . . . Route ------- -11/Junkyard -10/Materials (discovered 4 exits: [*Mat x3] / [*Min]) -10/Mines (discovered 2 exits: [*Mat x2]) -9/Materials (discovered 5 exits: *Mat x3 / *Min x2) -9/Mines (discovered 3 exits: *Mat x2 / *Exi) -9/Exiles -8/Mines -8/Materials (discovered 2 exits: *Fac x2) -7/Factory (discovered 2 exits: *Low x2) -7/Lower Caves -7/Lower Caves (discovered 2 exits: *Fac / *Dat) -7/Data Miner -6/Proximity Caves -6/Factory (discovered 3 exits: Fac / *Low x2) -6/Lower Caves -6/Lower Caves (discovered 2 exits: *Fac / *Zio) -6/Zion (discovered 2 exits: *Dee / [*Pro]) -6/Deep Caves -5/Proximity Caves -5/Factory (discovered 4 exits: *Fac x2 / Upp x2) -5/Waste -5/Factory (discovered 3 exits: *Fac / *Upp x2) -5/Upper Caves (discovered 2 exits: *Upp / *War) -5/Upper Caves (discovered 2 exits: *Fac / *War) -5/Warlord -4/Proximity Caves -4/Factory (discovered 2 exits: Res / *Ext) -4/Extension (discovered 2 exits: *Res / [*Cet]) -4/Cetus (discovered 2 exits: *Res / [*Arc]) -4/Archives (discovered 2 exits: *Res / *Hub) -4/Hub_04(d) -3/Research (discovered 3 exits: Res / Arm / *Tes) -3/Testing -2/Research (discovered 2 exits: *Acc x2) -1/Access -1/Command Free Derelict Territories History --------- Turn | Location | Event 1 | -11/Junkyard | Discovered new exit (range 0) 1 | -11/Junkyard | Entered Materials 73 | -10/Materials | Discovered new exit (range 13) 311 | -10/Materials | Build established: Mutant 436 | -10/Materials | Discovered new exit (range 7) 514 | -10/Materials | Core integrity fell below 50% 618 | -10/Materials | Discovered new exit (range 3) 820 | -10/Materials | Build established: Scavenger-Mutant 940 | -10/Materials | Discovered new exit (range 3) 1216 | -10/Materials | Entered Mines 1315 | -10/Mines | Build established: Mutant 1362 | -10/Mines | YI-UF0 nonchalantly dropped a Grenade Launcher on the ground 1402 | -10/Mines | Destroyed YI-UF0 1425 | -10/Mines | Found Prototype Storage 1485 | -10/Mines | Identified YI-UF0's Bottomless Matter Pit 1584 | -10/Mines | A weapon hastily lodged in a ceiling crevice suddenly fell to the ground 1793 | -10/Mines | Discovered new exit (range 7) 1851 | -10/Mines | Learned location of 1 exit from Materials 1883 | -10/Mines | Discovered new exit (range 9) 2075 | -10/Mines | Assisted by bots powering up and referring to "LRC-V3" 2235 | -10/Mines | Found a hidden stash of uninstalled traps 3512 | -10/Mines | Entered Materials 3512 | -9/Materials | Accompanied by 3 allies 3512 | -9/Materials | Evolved 2 slots: Utility x2 3513 | -9/Materials | Identified exit to Materials 3689 | -9/Materials | Discovered new exit (range 16) 4193 | -9/Materials | Lost 3 parts (1n1u1w) 4228 | -9/Materials | Discovered exit to Materials (range 5) 4589 | -9/Materials | Discovered new exit (range 7) 5030 | -9/Materials | Discovered exit to Materials (range 9) 6162 | -9/Materials | Entered Mines 6185 | -9/Mines | Met a Derelict bent on vengeance 6433 | -9/Mines | Learned location of Storage (-8) 6594 | -9/Mines | Assembled infested the area 6599 | -9/Mines | Assisted by a Guerilla fighting off Assembled 6915 | -9/Mines | Discovered exit to Materials (range 6) 7029 | -9/Mines | Met a Derelict who couldn't figure out how to use a Trap Extractor 7360 | -9/Mines | Met a Derelict shopkeep closing up shop 7866 | -9/Mines | Deemed a non-threat by the Exiles lab entrance 7866 | -9/Mines | Discovered new exit (range 5) 8032 | -9/Mines | Learned Materials non-interactive machine intel 8157 | -9/Mines | Discovered exit to Materials (range 12) 8392 | -9/Mines | Entered Exiles 8469 | -9/Exiles | Met 8R-AWN 8518 | -9/Exiles | Met EX-HEX 8652 | -9/Exiles | Learned location of Zion (-6) 8655 | -9/Exiles | Met EX-DEC 8951 | -9/Exiles | Discovered new exit (range 10) 9421 | -9/Exiles | Attacked by the Exiles 9566 | -9/Exiles | Core integrity fell below 50% 9626 | -9/Exiles | Lost 8 parts (2p2n2u2w) 9643 | -9/Exiles | Core integrity fell below 20% 9646 | -9/Exiles | Destroyed 8R-AWN 9662 | -9/Exiles | Found Prototype Ballistic Gun 9668 | -9/Exiles | Found Prototype Ballistic Gun 9764 | -9/Exiles | Identified 8R-AWN's Boregun (x2) 10117 | -9/Exiles | Destroyed EX-HEX 10161 | -9/Exiles | Destroyed EX-DEC 10238 | -9/Exiles | Build established: Scavenger-Mutant 10248 | -9/Exiles | Destroyed EX-BIN 10315 | -9/Exiles | Found Prototype Processor 10326 | -9/Exiles | Found Deploy-a-Sentry 11194 | -9/Exiles | Left Exiles lab with Deploy-a-Sentry 11194 | -9/Exiles | Entered Mines 11324 | -8/Mines | Discovered exit to Materials (range 13) 11418 | -8/Mines | Entered Materials 11418 | -8/Materials | Evolved 2 slots: Utility x2 11419 | -8/Materials | Loaded intel: 48 non-interactive machine locations 11468 | -8/Materials | Identified Exp. Core Analyzer 12017 | -8/Materials | Discovered new exit (range 5) 12345 | -8/Materials | Discovered new exit (range 9) 12385 | -8/Materials | Entered Factory 12385 | -7/Factory | Evolved 2 slots: Power x1, Utility x1 12723 | -7/Factory | Garrison activated, responded to threat 12918 | -7/Factory | Lost 4 parts (1p2n1u) 13226 | -7/Factory | Identified exit to Lower Caves 13875 | -7/Factory | Entered Lower Caves 14318 | -7/Lower Caves | A Commander dispatched an escort 14321 | -7/Lower Caves | Learned location of 1 exit from Research 14321 | -7/Lower Caves | Learned 8 Factory zone layouts 14321 | -7/Lower Caves | Learned Factory security intel 14321 | -7/Lower Caves | Learned Extension security intel 14811 | -7/Lower Caves | Encountered a Warlord checkpoint 14867 | -7/Lower Caves | Attracted the attention of an 0b10 base 14915 | -7/Lower Caves | Learned location of 1 exit from Proximity Caves 14915 | -7/Lower Caves | Learned Armory trap positions 14915 | -7/Lower Caves | Learned Research emergency access door positions 14915 | -7/Lower Caves | Learned Factory security intel 15008 | -7/Lower Caves | Discovered new exit (range 13) 15219 | -7/Lower Caves | Learned Factory stockpile data 16306 | -7/Lower Caves | Learned 8 Factory zone layouts 17034 | -7/Lower Caves | Identified exit to Lower Caves 17036 | -7/Lower Caves | Entered another Lower Caves area 17103 | -7/Lower Caves | Lost 3 parts (1n2u) 17122 | -7/Lower Caves | Discovered new exit (range 9) 19144 | -7/Lower Caves | Learned Factory terminal intel 19918 | -7/Lower Caves | Spotted OH-E01(f) 19918 | -7/Lower Caves | Spotted YF-16C(f) 19919 | -7/Lower Caves | Encountered a Master Thief 19919 | -7/Lower Caves | Encountered a Master Thief 19919 | -7/Lower Caves | Spotted 6R-ZEH(f) 19920 | -7/Lower Caves | Encountered a Master Thief 19920 | -7/Lower Caves | Deploy-a-Sentry stolen by Master Thief 19924 | -7/Lower Caves | 8R-AWN's Boregun stolen by Master Thief 19924 | -7/Lower Caves | 8R-AWN's Boregun stolen by Master Thief 19927 | -7/Lower Caves | Destroyed OH-E01(f) 20063 | -7/Lower Caves | Discovered new exit (range 9) 20106 | -7/Lower Caves | Identified exit to Data Miner 20169 | -7/Lower Caves | Learned location of Extension (-4) 23073 | -7/Lower Caves | Entered Data Miner 23073 | -7/Data Miner | Discovered new exit (range 6) 23192 | -7/Data Miner | Met Data Miner 23298 | -7/Data Miner | Learned location of Section 7 (-2) 23298 | -7/Data Miner | Acquired the access code to Warlord's prototype stash 23417 | -7/Data Miner | Received God Mode back door access code from Data Miner 23555 | -7/Data Miner | Identified exit to Proximity Caves 23561 | -7/Data Miner | Entered Proximity Caves 23562 | -6/Proximity Caves | Identified exit to Factory 23715 | -6/Proximity Caves | Lost 4 parts (1n1u2w) 23765 | -6/Proximity Caves | System corruption reached 10% 23775 | -6/Proximity Caves | Spotter reported a threat 23782 | -6/Proximity Caves | Escorted by Enhanced Grunt 23803 | -6/Proximity Caves | Found Imp. Powered Armor 24521 | -6/Proximity Caves | Spotter reported a threat 24717 | -6/Proximity Caves | Learned Factory non-interactive machine intel 25449 | -6/Proximity Caves | Attracted the attention of an 0b10 outpost 25496 | -6/Proximity Caves | Core integrity fell below 50% 25518 | -6/Proximity Caves | Destroyed 8 combat bots 25839 | -6/Proximity Caves | Found Corrupted Prototype Device 25839 | -6/Proximity Caves | Identified Exp. Thermal Shield 25936 | -6/Proximity Caves | System corruption reached 30% 26563 | -6/Proximity Caves | Entered Factory 26563 | -6/Factory | Accompanied by 2 allies 26563 | -6/Factory | Evolved 2 slots: Utility x1, Weapon x1 26564 | -6/Factory | Identified exit to Factory 26567 | -6/Factory | Loaded intel: 185 non-interactive machine locations 26568 | -6/Factory | Loaded intel: 26 terminal locations 26895 | -6/Factory | Build established: Scavenger-Skirmisher 26913 | -6/Factory | Search patrols dispatched 27225 | -6/Factory | Identified exit to Lower Caves 27652 | -6/Factory | Entered Lower Caves 27652 | -6/Lower Caves | Spotted YU-6TX(f) 27653 | -6/Lower Caves | Encountered a Master Thief 27659 | -6/Lower Caves | Spotted 5F-Y33(f) 27660 | -6/Lower Caves | Encountered a Master Thief 27661 | -6/Lower Caves | Adv. Force Field stolen by Master Thief 27663 | -6/Lower Caves | YI-UF0's Bottomless Matter Pit stolen by Master Thief 27939 | -6/Lower Caves | Build established: Scavenger-Tank 28526 | -6/Lower Caves | Encountered a Warlord checkpoint 29261 | -6/Lower Caves | Discovered new exit (range 16) 29589 | -6/Lower Caves | Attacked by a delusional Derelict stockpiling parts 30724 | -6/Lower Caves | Identified exit to Lower Caves 30734 | -6/Lower Caves | Entered another Lower Caves area 30761 | -6/Lower Caves | Learned Factory interactive machine intel 31024 | -6/Lower Caves | Attracted the attention of an 0b10 checkpoint 31993 | -6/Lower Caves | Spotted 63-C40(f) 31994 | -6/Lower Caves | Encountered a Master Thief 31994 | -6/Lower Caves | Spotted FY-E79(f) 31994 | -6/Lower Caves | Spotted J4-79I(f) 31994 | -6/Lower Caves | Spotted RL-PWN(f) 31995 | -6/Lower Caves | Encountered a Master Thief 31995 | -6/Lower Caves | Encountered a Master Thief 31995 | -6/Lower Caves | Encountered a Master Thief 31995 | -6/Lower Caves | Exp. Thermal Shield stolen by Master Thief 31996 | -6/Lower Caves | Enh. Flexi-carbon Leg stolen by Master Thief 31997 | -6/Lower Caves | Enh. Flexi-carbon Leg stolen by Master Thief 31998 | -6/Lower Caves | Exp. Heat Sink stolen by Master Thief 32009 | -6/Lower Caves | Discovered new exit (range 15) 32013 | -6/Lower Caves | Destroyed J4-79I(f) 32116 | -6/Lower Caves | Build established: Derelict-Mutant 34184 | -6/Lower Caves | Identified exit to Zion 35359 | -6/Lower Caves | Build established: Trapper-Mutant 35654 | -6/Lower Caves | Learned Factory stockpile data 36119 | -6/Lower Caves | Discovered exit to Factory (range 12) 38229 | -6/Lower Caves | Entered Zion 38597 | -6/Zion | Discovered new exit (range 16) 38618 | -6/Zion | Acquired unknown access codes intercepted by a Zionite 40468 | -6/Zion | Found Prototype Special Weapon 40468 | -6/Zion | Identified RU-N14's Throwing Claymores 40475 | -6/Zion | Found RU-N14's Throwing Claymores 40483 | -6/Zion | Found RU-N14's Throwing Claymores 40489 | -6/Zion | Found RU-N14's Throwing Claymores 40811 | -6/Zion | Found CR-A16's Pointy Stick 40847 | -6/Zion | Given A8's code to call for help 42667 | -6/Zion | Found GAL Module 43268 | -6/Zion | Discovered new exit (range 5) 43272 | -6/Zion | Saw the warning signs outside the Deep Caves entrance 43280 | -6/Zion | Identified exit to Deep Caves 43284 | -6/Zion | Entered Deep Caves 43596 | -6/Deep Caves | Build established: Mutant 44516 | -6/Deep Caves | Attacked by Z-Imprinter 44530 | -6/Deep Caves | Destroyed Z-Imprinter 44690 | -6/Deep Caves | Found Prototype Protection 44690 | -6/Deep Caves | Identified Zio. Weapon Casing 44910 | -6/Deep Caves | Z-Facility disabled 44962 | -6/Deep Caves | Crushed by falling debris 44975 | -6/Deep Caves | Found Zio. Weapon Casing 45288 | -6/Deep Caves | Build established: Derelict-Mutant 45705 | -6/Deep Caves | Discovered new exit (range 9) 46291 | -6/Deep Caves | Found Prototype Protection 46291 | -6/Deep Caves | Identified Zio. Heavy Carapace 46296 | -6/Deep Caves | Found Zio. Heavy Carapace 46423 | -6/Deep Caves | Found Zio. Heavy Carapace 46902 | -6/Deep Caves | Spotted as-80617 46940 | -6/Deep Caves | Destroyed as-80617 47099 | -6/Deep Caves | Spotted as-51760 47140 | -6/Deep Caves | Destroyed as-51760 47518 | -6/Deep Caves | Build established: Mutant 48370 | -6/Deep Caves | Exposed GOLEM chamber 48371 | -6/Deep Caves | Triggered Deep Caves wall 48374 | -6/Deep Caves | Spotted AS-60963 48398 | -6/Deep Caves | Destroyed AS-05861 48414 | -6/Deep Caves | Destroyed AS-60963 48433 | -6/Deep Caves | Destroyed 43 combat bots 48483 | -6/Deep Caves | Destroyed 8 combat bots 48899 | -6/Deep Caves | Build established: Scavenger-Mutant 49623 | -6/Deep Caves | Found GOLEM Unit 49631 | -6/Deep Caves | Found GOLEM Unit 49638 | -6/Deep Caves | Found GOLEM Unit 49774 | -6/Deep Caves | Found Prototype Device 49776 | -6/Deep Caves | Identified Cloak of Protection 49968 | -6/Deep Caves | Spotted as-37876 49995 | -6/Deep Caves | Destroyed as-37876 50025 | -6/Deep Caves | Lost 6 parts (1p4u1w) 50104 | -6/Deep Caves | Spotted as-66251 50106 | -6/Deep Caves | Entered Proximity Caves 50405 | -5/Proximity Caves | Build established: Golem 50923 | -5/Proximity Caves | Build established: Tank 51258 | -5/Proximity Caves | Learned 8 Factory zone layouts 51275 | -5/Proximity Caves | Attacked by a faux Warlord 52365 | -5/Proximity Caves | Learned location of 1 exit from Factory 52588 | -5/Proximity Caves | Discovered exit to Factory (range 4) 52736 | -5/Proximity Caves | Received a Behemoth hack from an annoying Tinkerer 52798 | -5/Proximity Caves | Entered Factory 52798 | -5/Factory | Evolved 2 slots: Propulsion x2 52799 | -5/Factory | Identified exit to Upper Caves 52800 | -5/Factory | Identified exit to Factory 52803 | -5/Factory | Loaded intel: 51 interactive machine locations 53128 | -5/Factory | Build established: Mutant 53213 | -5/Factory | Discovered exit to Factory (range 13) 53366 | -5/Factory | Sucked down chute 53366 | -5/Factory | Entered Waste 53367 | -5/Waste | Joined by Warlord forces that had cleared the area 53420 | -5/Waste | Found Damper Plating 53575 | -5/Waste | Discovered new exit (range 10) 53834 | -5/Waste | Build established: Scavenger-Tank 53891 | -5/Waste | Found Unknown Launcher 53891 | -5/Waste | Identified Fusion Bomb Launcher 54054 | -5/Waste | Entered Factory 54054 | -5/Factory | Accompanied by 18 allies 54205 | -5/Factory | Spotted B-75 Beast 54206 | -5/Factory | Allies destroyed B-75 Beast 54497 | -5/Factory | Incoming investigation squad redirected 55049 | -5/Factory | Discovered exit to Upper Caves (range 9) 55259 | -5/Factory | Discovered exit to Factory (range 14) 55554 | -5/Factory | First assault squad dispatched 55573 | -5/Factory | Incoming assault squad redirected 55830 | -5/Factory | Found Prototype Launcher 55833 | -5/Factory | Found Prototype Launcher 55841 | -5/Factory | Identified Scatter Rocket Array (x2) 55961 | -5/Factory | Entered Upper Caves 55961 | -5/Upper Caves | Accompanied by 9 allies 56144 | -5/Upper Caves | Learned Factory terminal intel 56638 | -5/Upper Caves | Learned Factory terminal intel 56771 | -5/Upper Caves | A Derelict revealed a hidden shortcut to "reach the base" 56777 | -5/Upper Caves | Identified exit to Warlord 57441 | -5/Upper Caves | Attracted the attention of an 0b10 checkpoint 57608 | -5/Upper Caves | Discovered new exit (range 13) 57639 | -5/Upper Caves | Identified exit to Upper Caves 57976 | -5/Upper Caves | Entered another Upper Caves area 57976 | -5/Upper Caves | Accompanied by 7 allies 58142 | -5/Upper Caves | Discovered exit to Factory (range 12) 58273 | -5/Upper Caves | Encountered a Warlord checkpoint 58610 | -5/Upper Caves | Learned Factory terminal intel 58844 | -5/Upper Caves | Learned Factory terminal intel 59195 | -5/Upper Caves | Learned location of 1 exit from Research 59195 | -5/Upper Caves | Learned 8 Factory zone layouts 59195 | -5/Upper Caves | Learned Armory emergency access door positions 59195 | -5/Upper Caves | Learned Armory stockpile data 59443 | -5/Upper Caves | Discovered exit to Warlord (range 9) 59582 | -5/Upper Caves | Build established: Scavenger-Mutant 59853 | -5/Upper Caves | Learned 8 Factory zone layouts 60132 | -5/Upper Caves | Entered Warlord 60132 | -5/Warlord | Accompanied by 7 allies 60214 | -5/Warlord | System corruption cleaned by Quarantine Array 60469 | -5/Warlord | Found GOLEM Unit 60661 | -5/Warlord | Visited the Vortex Lab 60676 | -5/Warlord | Found Prototype Energy Gun 60680 | -5/Warlord | Found Prototype Energy Gun 60917 | -5/Warlord | Build established: Commander-Mutant 61354 | -5/Warlord | Build established: Scavenger-Mutant 61365 | -5/Warlord | Identified Vortex Rifle (x2) 61375 | -5/Warlord | Found Prototype Device 61432 | -5/Warlord | Warlord's base attacked by MAIN.C 61445 | -5/Warlord | Met Warlord 61471 | -5/Warlord | Opened Warlord's prototype stash 61480 | -5/Warlord | Found Prototype Reactor 61480 | -5/Warlord | Identified Vortex Chain Reactor 61492 | -5/Warlord | Found Prototype Hackware 61498 | -5/Warlord | Found Prototype Processor 61765 | -5/Warlord | Spotted Striker 61768 | -5/Warlord | Spotted Striker 61782 | -5/Warlord | Warlord forces counterattacked 61913 | -5/Warlord | Discovered new exit (range 12) 61935 | -5/Warlord | Identified exit to Proximity Caves 61937 | -5/Warlord | Entered Proximity Caves 61937 | -4/Proximity Caves | Accompanied by 10 allies 62137 | -4/Proximity Caves | Spotted B-86 Titan 62153 | -4/Proximity Caves | Allies destroyed B-86 Titan 63188 | -4/Proximity Caves | Discovered exit to Factory (range 5) 64562 | -4/Proximity Caves | Entered Factory 64562 | -4/Factory | Accompanied by 6 allies 64562 | -4/Factory | Evolved 2 slots: Utility x2 64563 | -4/Factory | Identified exit to Extension 64563 | -4/Factory | Identified exit to Research 64564 | -4/Factory | Loaded intel: 27 terminal locations 64586 | -4/Factory | Identified Exp. Target Analyzer 65451 | -4/Factory | Entered Extension 65488 | -4/Extension | Disrupted transfer network 65539 | -4/Extension | Rescued a captive Derelict 65540 | -4/Extension | Rescued a captive Derelict 65850 | -4/Extension | Rescued a captive Derelict 65912 | -4/Extension | Rescued a captive Derelict 65912 | -4/Extension | Rescued a captive Derelict 65955 | -4/Extension | Rescued a captive Derelict 66045 | -4/Extension | Rescued a captive Derelict 66416 | -4/Extension | Build established: Commander-Mutant 66632 | -4/Extension | Spotted B-86 Titan 66644 | -4/Extension | Spotted B-86 Titan 66670 | -4/Extension | Allies destroyed B-86 Titan 66677 | -4/Extension | Revealed the true nature of CR-A16's Pointy Stick 66680 | -4/Extension | Destroyed B-86 Titan 66714 | -4/Extension | Lost 14 parts (1p4n7u2w) 66828 | -4/Extension | Identified Wardrone Bay 66921 | -4/Extension | Rescued a captive Derelict 66949 | -4/Extension | Rescued a captive Derelict 66973 | -4/Extension | Rescued A7 67020 | -4/Extension | Build established: Scavenger-Mutant 67315 | -4/Extension | Rescued a captive Derelict 67421 | -4/Extension | Rescued a captive Derelict 67507 | -4/Extension | Discovered exit to Research (range 10) 67510 | -4/Extension | Discovered new exit (range 6) 67523 | -4/Extension | Build established: Commander-Mutant 67613 | -4/Extension | Entered Cetus 67613 | -4/Cetus | Accompanied by 11 allies (A7) 67618 | -4/Cetus | Acquired a Cetus Manufacturing Module code from A7 67650 | -4/Cetus | Spotted Cetus Guard 67650 | -4/Cetus | Spotted Cetus Guard 67651 | -4/Cetus | Allies destroyed Cetus Guard 67652 | -4/Cetus | Spotted Cetus Guard 67656 | -4/Cetus | Allies destroyed Cetus Guard 67657 | -4/Cetus | Allies destroyed Cetus Guard 67809 | -4/Cetus | Escorted A7 to Cetus Mainframe 67839 | -4/Cetus | Discovered new exit (range 17) 67879 | -4/Cetus | Spotted Cetus Guard 67881 | -4/Cetus | Spotted Cetus Guard 67881 | -4/Cetus | Spotted Cetus Guard 67882 | -4/Cetus | Discovered exit to Research (range 23) 67883 | -4/Cetus | Spotted Cetus Guard 67886 | -4/Cetus | Allies destroyed Cetus Guard 67890 | -4/Cetus | Allies destroyed Cetus Guard 67891 | -4/Cetus | Allies destroyed Cetus Guard 67893 | -4/Cetus | Allies destroyed Cetus Guard 67920 | -4/Cetus | Met Revision 17 68015 | -4/Cetus | Entered Archives 68015 | -4/Archives | Accompanied by 8 allies (A7) 68020 | -4/Archives | Received a hacking code to weaken MAIN.C 68024 | -4/Archives | Discovered exit to Research (range 25) 68136 | -4/Archives | Discovered new exit (range 18) 68259 | -4/Archives | Entered Hub_04(d) 68259 | -4/Hub_04(d) | Accompanied by 5 allies 68288 | -4/Hub_04(d) | Discovered exit to Research (range 16) 68373 | -4/Hub_04(d) | Build established: Scavenger-Gunner 68381 | -4/Hub_04(d) | Garrison activated, responded to threat 68488 | -4/Hub_04(d) | Network Hub disabled 68495 | -4/Hub_04(d) | Network Hub disabled 68497 | -4/Hub_04(d) | Spotted Lightning 68498 | -4/Hub_04(d) | Spotted Lightning 68505 | -4/Hub_04(d) | Spotted Lightning 68509 | -4/Hub_04(d) | First assault squad dispatched 68516 | -4/Hub_04(d) | Incoming investigation squad redirected 68517 | -4/Hub_04(d) | Spotted Lightning 68519 | -4/Hub_04(d) | Entered Research 68519 | -3/Research | Accompanied by 2 allies 68519 | -3/Research | Evolved 2 slots: Utility x2 68520 | -3/Research | Identified exit to Armory 68521 | -3/Research | Identified exit to Research 68521 | -3/Research | Identified exit to Testing 68719 | -3/Research | Revision forces began assault on 0b10 68727 | -3/Research | Spotted B-86 Titan 68770 | -3/Research | Destroyed B-86 Titan 68776 | -3/Research | Found Hvy. Reflective Plating 68790 | -3/Research | Met up with Revision 17++ 69058 | -3/Research | Build established: Scavenger-Mutant 69219 | -3/Research | Research terminal network offline 69280 | -3/Research | Spotted Executioner 69282 | -3/Research | Spotted Striker 69290 | -3/Research | Entered Testing 69434 | -3/Testing | Identified System Mapper 69734 | -3/Testing | Found Prototype Hackware 69964 | -3/Testing | Found Prototype Device 69964 | -3/Testing | Identified Exp. Shield Generator 69993 | -3/Testing | Found Exp. Shield Generator 70027 | -3/Testing | Spotted PL-3CNWLMAVGK 70069 | -3/Testing | Rewired PL-3CNWLMAVGK 70290 | -3/Testing | First assault squad dispatched 70305 | -3/Testing | Incoming assault squad redirected 70372 | -3/Testing | Lost 3 parts (3u) 70677 | -3/Testing | Found Prototype Energy Cannon 70677 | -3/Testing | Identified Disintegrator 70826 | -3/Testing | Found Prototype Protection 70826 | -3/Testing | Identified SHELL Armor 70840 | -3/Testing | Entered Research 70840 | -2/Research | Warlord forces began assault on 0b10 70840 | -2/Research | Evolved 2 slots: Propulsion x1, Utility x1 70950 | -2/Research | Research machine network offline 71023 | -2/Research | Discovered new exit (range 15) 71046 | -2/Research | Identified exit to Access 71239 | -2/Research | Borebot progress halted 71256 | -2/Research | Spotted Striker 71257 | -2/Research | Spotted Striker 71387 | -2/Research | Build established: Scavenger-Gunner 71409 | -2/Research | Discovered exit to Access (range 8) 71549 | -2/Research | Found Prototype Launcher 71549 | -2/Research | Identified Com. Tesla Bomb Launcher 71557 | -2/Research | Borebot progress halted 71591 | -2/Research | Borebot progress halted 71672 | -2/Research | Found Antimissile System 71718 | -2/Research | Entered Access 71718 | -1/Access | Evolved 2 slots: Propulsion x1, Weapon x1 71856 | -1/Access | Garrison activated, responded to threat 71867 | -1/Access | Identified Ghost Barrier 72259 | -1/Access | Build established: Hacker-Gunner 72444 | -1/Access | Identified exit to Command 72623 | -1/Access | System corruption reached 10% 72793 | -1/Access | Entered Command 72999 | -1/Command | Ghost Barrier fried by hacking feedback 73020 | -1/Command | Incoming investigation squad redirected 73154 | -1/Command | Disengaged cave seal 73154 | -1/Command | Derelicts emerged from the dark tunnel 73155 | -1/Command | Welcomed Warlord to Command 73336 | -1/Command | Warlord commented on Warlord statues 73345 | -1/Command | Spotted M Guard 73345 | -1/Command | Spotted M Guard 73345 | -1/Command | Spotted Combat Programmer 73346 | -1/Command | Spotted Combat Programmer 73348 | -1/Command | Combat Programmer assimilated allied Director 10a 73369 | -1/Command | Destroyed GN-WRU(K) 73388 | -1/Command | Combat Programmer assimilated allied NL-O5A(g) 73389 | -1/Command | Combat Programmer assimilated allied J9-LG9(g) 73395 | -1/Command | All MAIN.C guards destroyed 73404 | -1/Command | Lost 4 parts (1n3u) 73422 | -1/Command | Found Prototype Reactor 73423 | -1/Command | Identified Zero-point Reactor 73618 | -1/Command | Met MAIN.C 73619 | -1/Command | Hacked MAIN.C using A7's code 73633 | -1/Command | Destroyed MAIN.C Shell 73633 | -1/Command | 0b10 Conduit disabled 73636 | -1/Command | MAIN.C activated Command garrisons 73660 | *** | Establishing Free Derelict Territories! Last Messages --------------- 73653_ Blast Slug penetrates ZT-A5W(g). 73653_ ZT-A5W(g) knocked back. 73653_ Blast Slug penetrates MAIN.C. 73653_ ZT-A5W(g) knocked back. 73653_ Blast Slug penetrates MAIN.C. 73654_ ZT-A5W(g) knocked back. 73655_ Acquired 5 matter. 73655_ Acquired 9 matter. 73655_ Acquired 2 matter. 73656_ Blast Slug penetrates 0b10 Conduit. 73656_ Blast Slug penetrates MAIN.C. 73656_ Blast Slug penetrates ZT-A5W(g). 73656_ ZT-A5W(g) destroyed. 73659_ Blast Slug penetrates MAIN.C. 73659_ MAIN.C: "I hope you know you're still going to DIE HERE WITH ME!" 73659_ MAIN.C destroyed. ZY-L1N: Victory! Sure there's still lots to do, but without MAIN.C at the helm 0b10 doesn't stand a chance. We've got this... Map ----- +----------------------------------------------------+ | ?????????????????????????????????????????????????? | | ?????????????????????????????????????????????????? | | ?????????????????????????????????????????????????? | | ?????????????????????????????????????????????????? | | ?????????????????????????????????????????????????? | | ?????????????????????????????????????????????????? | | ?????????????????????????????????????????????????? | | ?????????????????????????????????????????????????? | | ?????????????????????????????????????????????????? | | ?????????????????????????????????????????????????? | | ?????????????????????????????????????????????????? | | ?????????????????????????????????????????????????? | | ?????????????????????????????????????????????????? | | ?????????????????????????????????????????????????? | | ?????????????????????????????????????????????????? | | ?????????????????????????????????????????????????? | | ?????????????????????????????????????????????????? | | ?????????????????????????????????????????????????? | | ?????????????????????????????????????????????????? | | ?????????????????????????????????????????????????? | | ???????????????##########????????????????????????? | | ?????????????"""" ????????????????????????? | | ?????????????"" ????????????????????????? | | ?????????????"" #######################?? | | ?????????????"" / #?? | | ?????????????"" |@ #?? | | ????????????"" /W g g #?? | | ????????????"" ################### #?? | | ??????????? [ ??????????????????# #?? | | ??????????? ??????????????????# ##? | | ???????????? ""??????????????????# T#? | | ???????????? " """"???????????????????#///### | | ???????????? """"""""???????????????????# | | ????????????? "?"""""""???????????????????#** | | ????????????? ?????????????????????????????# | | ???????????????????????????????????????????# | | ???????????????????????????????????????????# = | | ???????????????????????????????????????????# # | | ???????????????????????????????????????????###### | | ????????????????????????????????????????????????## | | ?????????????????????????????????????????????????? | | ?????????????????????????????????????????????????? | | ?????????????????????????????????????????????????? | | ?????????????????????????????????????????????????? | | ?????????????????????????????????????????????????? | | ?????????????????????????????????????????????????? | | ?????????????????????????????????????????????????? | | ?????????????????????????????????????????????????? | | ?????????????????????????????????????????????????? | | ?????????????????????????????????????????????????? | +----------------------------------------------------+ Best States ------------- Heat Dissipation 93 Coolant Potential 65 Energy Generation 55 Energy Capacity 1300 Matter Stores 300 Matter Capacity 300 Sight Range 16 Robot Scan Range 19 Terrain Scan Density 10 Jamming Range 14 Cloak Strength 5 Armor Coverage 2250 Resistance: KI 30 Resistance: TH 25 Propulsion Shielding 33 Weapon Shielding 100 Point Defense Rating 320 Phase Shifting 10 Evasion (%) 55 Targeting Accuracy 8 Launcher Accuracy 40 Target Analysis 10 Core Analysis 8 Recoil Reduction 6 Kinecelleration 40 Offensive Hacking 32 Defensive Hacking 20 Trap Extractor Capacity 6 Item Schematics ----------------- Combat Drone Bay | -7/Data Miner | Free Lgt. Regenerative Plating | -7/Data Miner | Free Cld. Cesium-ion Thruster | -7/Data Miner | Free Field Propulsion Drive | -7/Data Miner | Free Cld. Plasma Cannon | -7/Data Miner | Free Imp. Plasma Cutter | -7/Data Miner | Free Lrn. Terrain Scanner | -7/Data Miner | Free Imp. Component Analysis Suite | -7/Data Miner | Free Gravity Neutralizer | -7/Data Miner | Free Energy Well | -6/Zion | Archive Imp. Coolant Injector | -6/Zion | Archive Mak. Hover Unit | -6/Zion | Archive Adv. Plasma Cannon | -6/Zion | Archive Adv. Focal Shield | -6/Zion | Archive Spk. Medium Treads | -6/Zion | Archive Adv. Actuator Array | -6/Zion | Archive Imp. Shock Absorption System | -6/Zion | Archive Hvy. Plasma Cannon | -6/Zion | Archive Adv. System Restoration Module | -6/Zion | Archive Matter Compressor | -6/Zion | Archive Imp. Recalibrator | -6/Zion | Archive Hvy. Flak Cannon | -6/Zion | Archive Enh. Nova Cannon | -5/Factory | Scanalyzed Robot Schematics ------------------ M-22 Extractor | -7/Data Miner | Free G-50 Soldier | -7/Data Miner | Free E-15 Imp | -7/Data Miner | Free C-35 Carver | -7/Data Miner | Free G-47 Trooper | -6/Zion | Archive T-07 Excavator | -6/Zion | Archive C-57 Dissector | -6/Zion | Archive Fabricated ------------ Nothing Alien Tech Used ----------------- None Achievements -------------- Poison In The Code Challenges ------------ None Game ------ Seed DynamicChargeDerivative Manual? 0 Play Time 03:16:58 Cumulative 366.7 hours Start 2023.05.31 @ 22:58:30 End 2023.06.03 @ 08:47:26 Sessions 13 Manual Loads 0 Difficulty Rogue Special Mode None Game No. 517 Rogue 490 Adventurer 4 Explorer 23 Win Type 7 Total 20 Types 14/0/2/2/1/0/0/1/0 Lore% 82 Gallery% 93 Achievement% 83 Wizard Run 0 Options --------- ASCII 0 Keyboard 1 Movement Numpad Keybinds 0 Fullscreen 1 Font 18/SmallcapsGlow Map View 76x50 Tactical HUD 1 Map Filters NONE Filters NONE Steam 1 RUN: 025d901d-ae24-457f-b346-aca7a0c11e45